Cogmind - Beta 17.1 @@@ ROGUE MODE // 2026.09.17 @ 12:13:41 Player: fai Result: Escaped! Performance ------------- Evolutions (9) 4500 Regions Visited (28) 5600 Robots Destroyed (218) 1090 Value Destroyed (19302) 19302 Prototype IDs (20) 400 Alien Tech Used (0) 0 Bonus (51601) 51601 TOTAL SCORE: 82493 Bonus ------- High Alert Combat Kills 1681 Follower Combat Kills 13491 Prayed to X0-1V1 5000 Major X0-1V1 Interference 7050 Entered Garrisons 2400 Used RIF Installer 8500 Destroyed MAIN.C Guards 500 Met MAIN.C 5000 Destroyed MAIN.C Shell 5000 Win 3000 Friendly Fire -21 Cogmind --------- Core Integrity 198/1700 Matter 117/300 Energy 98/100 System Corruption 44% Temperature Cool (0) Movement Core (50) Location To Epsilon Eridani Parts ------- > --- POWER (1) -------- (None) > --- PROPULSION (6) --- (None) > --- UTILITY (14) ----- (None) > --- WEAPON (5) ------- (None) > --- INVENTORY (7) ---- Advanced Remote Force Field Advanced Hacking Suite Relay Coupler [NC] (48) Relay Coupler [NC] (45) Relay Coupler [Brawler] (49) Relay Coupler [Duelist] (61) X0-1V1's Piety Tracker Peak State ------------ > --- POWER ------------ Particle Reactor > --- PROPULSION ------- Armored Heavy Treads Enhanced Biometal Leg Centrium Wheel High-density Centrium Wheel High-density Centrium Wheel > --- UTILITY ---------- Advanced Coolant Injector High-capacity Storage Unit Energy Well Experimental Targeting Computer Experimental Core Analyzer Centrium Light Armor Plating Graphene Brace Advanced Force Field Relay Coupler [NC] Relay Coupler [Swarmer] Relay Coupler [Duelist] Relay Coupler [Sentry] Relay Coupler [Hunter] Relay Coupler [Proto] > --- WEAPON ----------- Enhanced Nova Cannon Multirail Multirail Multirail Power Sword > --- INVENTORY -------- Quantum Reactor Quantum Reactor Advanced Remote Force Field Advanced Hacking Suite Relay Coupler [NC] Relay Coupler [NC] Relay Coupler [NC] Relay Coupler [NC] Relay Coupler [Grunt] Relay Coupler [Brawler] Relay Coupler [Duelist] Relay Coupler [Demolisher] Relay Coupler [Hunter] Relay Coupler [Hunter] X0-1V1's Piety Tracker Advanced Remote Datajack [Rating: 197] Favorites ----------- Power Particle Reactor Engine Improved Deuterium Engine Power Core Light Nuclear Core Reactor Particle Reactor Propulsion Armored Huge Wheel Treads Medium Treads Leg Aluminum Leg Wheel Armored Huge Wheel Hover Unit Gravmag System Flight Unit Flight Unit Utility Relay Coupler [Sentry] Device X0-1V1's Piety Tracker Storage High-capacity Storage Unit Processor Armor Integrity Analyzer Hackware Relay Coupler [Sentry] Protection Centrium Light Armor Plating Weapon Enhanced Nova Cannon Energy Gun Field Laser Energy Cannon Enhanced Nova Cannon Ballistic Gun High-powered Shotgun Ballistic Cannon Flak Cannon Launcher Improved Grenade Launcher Special Weapon Remote Datajack Impact Weapon Heavy Flail Slashing Weapon Axe Piercing Weapon Enhanced Force Lance Build | -11 -10 -9 -9 -9 -8 -8 -8 -8 -7 -7 -7 -7 -6 -6 -5 -5 -5 -5 -4 -4 -3 -3 -2 -2 -1 -1 -1 -1 ------- Run | Yrd Mat Mat Sto Gar Mat Gar Mat Gar Fac Gar Fac Gar Fac Gar Fac Gar Fac Gar Fac Gar Res Gar Res Gar Acc Gar Acc Com Slots Evolved 18 | . . 2 . . 2 . . . 2 . . . 2 . 2 . . . 2 . 2 . 2 . 2 . . . Power . | . . . . . . . . . . . . . . . . . . . . . . . . . . . . . Propulsion 3 | . . 1 . . . . . . . . . . . . 1 . . . 1 . . . . . . . . . Utility 12 | . . 1 . . 1 . . . 1 . . . 2 . 1 . . . 1 . 2 . 2 . 1 . . . Weapon 3 | . . . . . 1 . . . 1 . . . . . . . . . . . . . . . 1 . . . Parts Attached 259 | 7 7 5 . 27 1 12 4 27 12 14 1 6 7 15 3 13 . 9 4 11 3 12 3 21 2 15 5 13 Power 25 | 1 . . . 4 . . . 4 1 3 . 1 . 2 . 2 . . . 1 . 1 . 2 1 . . 2 Engine 9 | 1 . . . 2 . . . 1 1 1 . 1 . 2 . . . . . . . . . . . . . . Core 7 | . . . . 2 . . . 3 . 2 . . . . . . . . . . . . . . . . . . Reactor 9 | . . . . . . . . . . . . . . . . 2 . . . 1 . 1 . 2 1 . . 2 Propulsion 59 | 2 1 2 . 13 . 4 . 11 4 1 . 2 1 2 1 1 . 1 2 . . . . 6 . 3 1 1 Treads 3 | . . . . 1 . . . . . . . . . . . . . . . . . . . 1 . . 1 . Leg 28 | . . . . 6 . 4 . 9 1 1 . . . 1 . . . 1 . . . . . 1 . 3 . 1 Wheel 23 | 2 1 2 . 3 . . . . 3 . . 2 1 1 1 1 . . 2 . . . . 4 . . . . Hover 3 | . . . . 1 . . . 2 . . . . . . . . . . . . . . . . . . . . Flight 2 | . . . . 2 . . . . . . . . . . . . . . . . . . . . . . . . Utility 115 | 2 2 1 . 4 1 6 3 9 2 8 1 3 4 6 1 7 . 8 1 7 2 9 2 8 . 9 3 6 Device 27 | 1 1 1 . 2 1 . 1 2 . 2 . . . . 1 1 . 1 . 1 . 1 2 4 . 3 2 . Storage 6 | 1 1 . . . . . . . . 1 . . . . . . . . . . . 1 . . . 2 . . Processor 4 | . . . . . . . . . . . . . 1 . . . . . . . . 1 . . . . . 2 Hackware 75 | . . . . 2 . 6 2 7 1 5 1 3 2 6 . 6 . 7 1 6 2 6 . 4 . 4 . 4 Protection 3 | . . . . . . . . . 1 . . . 1 . . . . . . . . . . . . . 1 . Artifact . | . . . . . . . . . . . . . . . . . . . . . . . . . . . . . Weapon 60 | 2 4 2 . 6 . 2 1 3 5 2 . . 2 5 1 3 . . 1 3 1 2 1 5 1 3 1 4 Energy Gun 6 | 1 . . . 2 . 1 . 1 . . . . . 1 . . . . . . . . . . . . . . Energy Cannon 14 | . . . . . . . . . . . . . 1 2 . 2 . . . 3 . . 1 3 1 1 . . Ballistic Gun 12 | 1 3 2 . 2 . . . . . . . . . . . . . . . . . . . 1 . . 1 2 Ballistic Cannon 4 | . . . . . . . . . 4 . . . . . . . . . . . . . . . . . . . Launcher 5 | . . . . 1 . . . 1 . . . . 1 . . 1 . . . . . 1 . . . . . . Special Weapon 12 | . . . . 1 . . . 1 1 1 . . . 2 . . . . 1 . 1 1 . 1 . . . 2 Impact Weapon 3 | . 1 . . . . 1 . . . 1 . . . . . . . . . . . . . . . . . . Slashing Weapon 3 | . . . . . . . 1 . . . . . . . 1 . . . . . . . . . . 1 . . Piercing Weapon 1 | . . . . . . . . . . . . . . . . . . . . . . . . . . 1 . . Special Melee Weapon . | . . . . . . . . . . . . . . . . . . . . . . . . . . . . . Unidentified Prototypes 7 | . 1 . . . . . . . . . . . . . . . . . . . . 1 . 1 . . 1 3 Corrupted Parts 6 | . . . . 1 . . . 2 . . . . . . . . . . . . . . . . . . . 3 System Corruption 34 | . . . . 6 . . . 9 . . . . . . . . . . . . . . . . . . . 19 Parts Lost 110 | . 1 1 . 12 . 1 . 15 1 1 . 4 3 5 . 1 . . 1 . 1 3 . 19 . 6 2 33 Power 8 | . . . . 1 . . . 1 . . . . . 1 . . . . . . . . . 2 . . . 3 Propulsion 34 | . 1 1 . 7 . 1 . 8 . . . 2 1 2 . . . . 1 . . . . 3 . 1 1 5 Utility 42 | . . . . 2 . . . 3 . 1 . . 1 1 . 1 . . . . 1 3 . 11 . 2 1 15 Weapon 26 | . . . . 2 . . . 3 1 . . 2 1 1 . . . . . . . . . 3 . 3 . 10 Highest Loss Streak 27 | . 1 1 . 5 . 1 . 7 1 1 . 3 3 2 . 1 . . 1 . 1 1 . 8 . 2 2 27 To Critical Strikes . | . . . . . . . . . . . . . . . . . . . . . . . . . . . . . Average Backups 17 | 2 8 11 15 16 14 16 16 16 16 14 17 17 16 17 20 19 19 19 21 21 20 20 20 18 20 20 22 17 Power . | . . 1 1 . . . . . . . . . . . . . 1 1 1 1 1 1 . 1 2 2 2 1 Propulsion 1 | 2 2 1 3 . . . . . 1 2 4 2 1 . . 2 2 1 1 2 4 4 3 1 . . . . Utility 11 | . 1 3 4 10 9 12 14 13 11 7 7 9 8 10 12 12 12 13 14 13 9 8 12 11 15 16 19 14 Weapon 2 | . 1 3 5 3 4 3 1 . 1 2 3 2 3 3 4 3 2 1 2 2 3 3 2 2 1 . . . Tool/Special . | . . . . . . . . . . . . . . . . . . . . . . . . . . . . . Unused Backups 69 | . 3 . . 6 . 3 . 7 2 3 1 3 . 1 2 5 4 7 . 2 1 8 1 2 . 1 . 7 Power 1 | . . . . . . . . . . . . . . . . . . . . . . 1 . . . . . . Propulsion 12 | . 3 . . . . . . . . 1 . . . . 1 . 3 1 . . 1 1 1 . . . . . Utility 39 | . . . . 4 . 3 . 5 2 1 . 3 . 1 1 5 1 5 . . . . . . . 1 . 7 Weapon 13 | . . . . 2 . . . 1 . . 1 . . . . . . 1 . 1 . 5 . 2 . . . . Tool/Special 4 | . . . . . . . . 1 . 1 . . . . . . . . . 1 . 1 . . . . . . Average Slot Usage (%) 91 | . 100 94 90 91 91 99 100 94 99 100 99 89 92 90 85 87 88 87 84 84 85 85 83 82 78 93 97 88 Engine 3 | . 14 10 10 7 8 8 8 1 6 2 7 7 6 5 5 1 . . . . . . . . . . . . Reactor 1 | . . . . . . . . . . . . . . . . 3 5 5 5 5 4 4 3 3 3 3 3 2 Leg 7 | . . . . 20 33 32 33 28 8 7 7 2 . 1 3 . . 2 . . . . . 2 3 6 7 2 Wheel 13 | . 28 31 30 9 . . . . 19 21 21 21 18 14 12 16 16 12 14 15 13 13 11 13 11 11 11 10 Device 7 | . 14 20 20 12 16 3 2 1 1 3 7 7 6 6 9 10 11 3 . 4 11 9 15 16 11 14 15 9 Storage 6 | . 14 10 10 10 8 8 8 8 7 7 7 7 6 6 5 5 5 5 5 5 4 4 3 3 3 8 7 6 Hackware 24 | . . . . 6 8 20 21 23 25 24 20 20 24 26 24 26 27 34 39 35 33 35 31 24 23 25 27 23 Energy Gun 1 | . 1 . . 1 . 3 10 5 3 . . . . 3 . . . . . . . . . . . . . . Energy Cannon 5 | . . . . . . . . . . . . . 5 7 11 10 11 11 10 9 9 8 7 6 5 10 9 4 Ballistic Gun 2 | . 24 20 20 11 8 5 . . . . . . . . . . . . . . . . . 1 3 . . 4 Ballistic Cannon 2 | . . . . . . . . . 13 14 14 9 5 . . . . . . . . . . . . . . . Special Weapon 4 | . . . . 1 8 7 6 7 6 6 7 7 6 5 5 5 5 4 5 4 3 3 3 3 3 3 3 2 Impact Weapon 2 | . 1 . . 4 . 6 4 . . 4 7 7 3 5 1 . . . . . . . . . . . . . Slashing Weapon 2 | . . . . . . . 2 7 3 2 . . . . 3 5 5 5 5 5 4 4 3 3 3 1 3 2 Peak Build Rating 197 | 9 22 28 29 35 39 41 44 45 47 57 58 59 70 78 82 101 101 101 105 110 129 127 148 164 142 179 190 197 Average Rating 86 | 6 12 27 28 29 38 35 37 36 44 50 57 55 68 72 80 90 100 95 103 107 123 122 140 140 139 166 182 176 On Entrance 77 | . 9 22 28 29 33 39 34 36 35 44 57 57 59 64 74 82 101 101 94 105 108 121 124 148 134 142 179 190 Avg Prop Armor Cover (%) 7 | . . . . 12 . . . 4 4 4 3 3 . 6 6 . . 3 7 . . 6 . 9 11 12 13 15 Naked Turns 55 | . . . . . . . . . . . . . . . . . . . . . . . . . . . . 55 Heaviest Build 135 | 15 32 34 34 35 36 36 35 41 55 69 69 69 83 77 80 108 108 111 107 94 115 115 124 124 101 135 128 125 Greatest Support 96 | 20 20 30 30 40 40 50 50 50 45 36 36 52 52 56 68 68 68 68 84 84 84 84 84 96 56 56 72 56 Greatest Overweight (x) 12 | . 1 1 1 3 . 1 . 12 3 1 1 2 1 1 1 2 1 1 1 1 1 2 1 2 1 2 2 3 Average Overweight (x) . | . . 1 1 1 . . . . . 1 1 1 1 1 1 1 1 1 1 . 1 1 1 . 1 1 1 1 Largest Inventory Capacity 22 | 8 15 15 17 17 17 17 17 17 17 22 22 22 22 22 22 22 22 22 22 22 22 22 22 22 22 22 22 22 Average Capacity 20 | 7 13 15 16 17 17 17 17 17 17 19 22 22 22 22 22 22 22 22 22 22 22 22 22 22 22 22 22 21 Most Carried 22 | 7 10 14 16 17 15 17 17 17 17 19 22 22 20 22 22 22 22 22 22 22 22 22 22 22 20 22 22 22 Average Carried 18 | 2 8 11 15 16 14 16 16 16 16 16 20 20 18 18 20 21 21 21 21 21 20 20 20 19 20 20 22 17 Final Capacity 22 | 8 15 15 17 17 17 17 17 17 17 22 22 22 22 22 22 22 22 22 22 22 22 22 22 22 22 22 22 7 Final Carried 22 | 7 10 14 16 16 14 17 16 17 17 19 20 21 15 20 22 22 22 22 22 21 18 22 21 20 20 22 22 7 Class Distribution -------------------- 34% | Botlord-Tank 19% | Botlord-Gunner 12% | Bothacker-Mutant 10% | Commander-Gunner 5% | Botlord-Mutant 5% | Mutant 4% | Commander-Tank 4% | Scavenger-Mutant Dominant Class ---------------- Mutant | -10/Materials Mutant | -9/Materials Mutant | -9/Storage Scavenger-Mutant | -9/Garrison Scavenger-Mutant | -8/Materials Bothacker-Mutant | -8/Garrison Bothacker-Mutant | -8/Materials Bothacker-Mutant | -8/Garrison Botlord-Gunner | -7/Factory Botlord-Gunner | -7/Garrison Commander-Gunner | -7/Factory Botlord-Mutant | -7/Garrison Commander-Tank | -6/Factory Botlord-Gunner | -6/Garrison Botlord-Tank | -5/Factory Botlord-Tank | -5/Garrison Botlord-Tank | -5/Factory Commander-Gunner | -5/Garrison Commander-Gunner | -4/Factory Botlord-Gunner | -4/Garrison Botlord-Tank | -3/Research Botlord-Tank | -3/Garrison Botlord-Tank | -2/Research Botlord-Tank | -2/Garrison Botlord-Gunner | -1/Access Botlord-Tank | -1/Garrison Botlord-Tank | -1/Access Botlord-Tank | -1/Command Resources | -11 -10 -9 -9 -9 -8 -8 -8 -8 -7 -7 -7 -7 -6 -6 -5 -5 -5 -5 -4 -4 -3 -3 -2 -2 -1 -1 -1 -1 ----------- Run | Yrd Mat Mat Sto Gar Mat Gar Mat Gar Fac Gar Fac Gar Fac Gar Fac Gar Fac Gar Fac Gar Res Gar Res Gar Acc Gar Acc Com Matter Collected 14378 | 189 256 177 56 724 . 1389 81 945 89 554 9 901 88 1061 65 244 . 1017 329 774 434 1428 376 589 . 1616 140 847 Remotely . | . . . . . . . . . . . . . . . . . . . . . . . . . . . . . Salvage Created 9211 | 159 294 223 87 692 . 253 24 325 122 410 . 154 357 196 . 197 . 297 57 248 401 1466 1380 1022 . 528 25 294 Parts 496 | 16 14 20 3 56 . 21 2 24 10 15 . 14 18 13 . 16 . 21 1 24 22 75 38 29 . 26 1 17 Haulers Intercepted 2 | . . . . . . . . . . . . . . . . . . . . . . . 2 . . . . . Recyclers Shooed 4 | . . 2 . . . . . . . . . . 1 . . . . . . . . . 1 . . . . . Parts Field Recycled . | . . . . . . . . . . . . . . . . . . . . . . . . . . . . . Retrieved Matter . | . . . . . . . . . . . . . . . . . . . . . . . . . . . . . Parts Self-Destructed . | . . . . . . . . . . . . . . . . . . . . . . . . . . . . . Prevented . | . . . . . . . . . . . . . . . . . . . . . . . . . . . . . Parts Restored . | . . . . . . . . . . . . . . . . . . . . . . . . . . . . . Kills | -11 -10 -9 -9 -9 -8 -8 -8 -8 -7 -7 -7 -7 -6 -6 -5 -5 -5 -5 -4 -4 -3 -3 -2 -2 -1 -1 -1 -1 ------- Run | Yrd Mat Mat Sto Gar Mat Gar Mat Gar Fac Gar Fac Gar Fac Gar Fac Gar Fac Gar Fac Gar Res Gar Res Gar Acc Gar Acc Com Combat Hostiles Destroyed 187 | . 6 6 2 26 . 10 . 12 4 5 . 7 9 6 . 5 . 9 1 13 4 28 10 16 . 4 . 4 Melee 4 | . . . . . . . . 3 . . . . . 1 . . . . . . . . . . . . . . Guns 53 | . 6 6 2 23 . 7 . 3 3 . . . . . . . . . . . . . . 1 . . . 2 Cannons 68 | . . . . . . . . . 1 5 . 7 5 2 . 2 . 3 1 2 4 14 4 12 . 4 . 2 AOE 57 | . . . . 3 . 2 . 4 . . . . 4 3 . 3 . 6 . 11 . 12 6 3 . . . . Classes Destroyed 22 | 2 2 4 . 1 . 1 . . . 1 . . 1 1 . 1 . . . . 1 3 3 1 . . . . Worker 8 | . . 1 . . . . 1 . 1 . . . . . . . . . . . . . 3 . . . . 2 Builder 4 | . . 1 . . . . . . . . . . 1 . . . . . . . 1 . 1 . . . . . Tunneler 5 | 4 . 1 . . . . . . . . . . . . . . . . . . . . . . . . . . Hauler 2 | . . . . . . . . . . . . . . . . . . . . . . . 2 . . . . . Recycler 5 | 1 . . . . . . . . . . . . 1 . . . . . . . 1 . 2 . . . . . Mechanic 2 | . . . . . . . . . . . . . . . . . . . . . . . 2 . . . . . Operator 3 | . 1 . 1 . . . . . . . . . . . . . . . . 1 . . . . . . . . Watcher 1 | . . . . . . . . . . 1 . . . . . . . . . . . . . . . . . . Swarmer 71 | . . 3 . 9 . 6 . 5 3 5 . 3 2 1 . 3 . 3 . 10 1 12 . 3 . 1 1 . Cutter 1 | . . . . . . . . . . . . . . . . . . . . . . 1 . . . . . . Saboteur 7 | . . . . . . . . . . . . . . 3 . . . 2 . . . 2 . . . . . . Grunt 36 | . 6 1 . 12 . . . . . . . 3 1 . . 1 . . . 3 . 1 3 3 . 1 . 1 Brawler 3 | . . . . . . . . . . . . . . . . . . . . . . . 2 . . 1 . . Duelist 4 | . . . . . . 1 . . 1 . . . . . . . . . . . . . 2 . . . . . Sentry 13 | . . 2 2 2 . 1 . . . . . . 1 2 . . . . . . . 1 . 1 . 1 . . Specialist 1 | . . . . . . . . . . . . . . . . . . . . . . 1 . . . . . . Hunter 9 | . . . . . . . . . . . . . 3 1 . . . . . . . 3 1 . . 1 . . Programmer 33 | . . . . 3 . 2 . 7 . . . 1 2 . . 1 . 3 1 . 2 5 1 3 . . . 2 Heavy 2 | . . . . . . . . . . . . . . . . . . . . . 1 1 . . . . . . Behemoth 6 | . . . . . . . . . . . . . . . . 1 . 1 . . . . 2 1 . 1 . . Combat Programmer 1 | . . . . . . . . . . . . . . . . . . . . . . . . . . . . 1 Striker 1 | . . . . . . . . . . . . . . . . . . . . . . 1 . . . . . . Assembled 5 | . . . . . . . . . . . . . . . . . . . . . . . . 5 . . . . Best Kill Streak 9 | 3 4 7 1 7 . 2 1 3 3 2 . 2 7 3 . 3 . 4 1 6 4 7 9 4 . 3 . 2 Combat Bots Only 7 | . 4 4 1 7 . 2 . 3 3 2 . 2 6 3 . 3 . 4 1 6 2 7 4 4 . 3 . 1 Max Kills in Single Turn 4 | 1 2 2 1 3 . 2 1 2 1 1 . 1 2 3 . 3 . 3 1 3 2 3 4 1 . 1 1 1 Gunslinging 1 | . 1 . . 1 . . . . . . . . . . . . . . . . . . . . . . . . Exploded 3 | . . . . 2 . 2 . 2 . . . . 2 3 . 3 . 3 . 3 . 3 2 1 . . . . Melee 1 | . . . . . . . . 1 . . . . . 1 . . . . . . . . . . . . . . Uniques/NPCs Destroyed 1 | . . . . . . . . . . . . . . . . . . . . . . . . . . . . 1 MAIN.C Shell (-1/Command) Combat | -11 -10 -9 -9 -9 -8 -8 -8 -8 -7 -7 -7 -7 -6 -6 -5 -5 -5 -5 -4 -4 -3 -3 -2 -2 -1 -1 -1 -1 -------- Run | Yrd Mat Mat Sto Gar Mat Gar Mat Gar Fac Gar Fac Gar Fac Gar Fac Gar Fac Gar Fac Gar Res Gar Res Gar Acc Gar Acc Com Hostile Shots Fired 1743 | . 28 27 10 131 . 36 9 132 21 63 10 71 92 94 . 27 . 40 29 32 24 98 9 189 . 53 29 489 Missed 530 | . 6 10 2 25 . 11 4 36 6 21 5 24 36 27 . 6 . 12 9 10 7 32 3 60 . 14 4 160 Hits 1213 | . 22 17 8 106 . 25 5 96 15 42 5 47 56 67 . 21 . 28 20 22 17 66 6 129 . 39 25 329 Melee 21 | . . . . . . . . 1 5 . . . . 2 . . . 1 . . . . . 5 . 2 . 5 Projectile 1192 | . 22 17 8 106 . 25 5 95 10 42 5 47 56 65 . 21 . 27 20 22 17 66 6 124 . 37 25 324 AOE 11 | . . . . . . . . 1 . . . . . . . . . . . . . . . . . 2 . 8 Critical Strikes 55 | . . . . 6 . 1 1 6 . 1 . . 1 . . . . . . 2 2 3 . 5 . 2 1 24 Actively Blocked 24 | . . . . . . . . . . . . . . . . . . . . . . . . 5 . 2 1 16 Part Disruptions 10 | . . . . . . . . 1 . . . 1 . . . 1 . . 1 . . . . 2 . . . 4 Damage Taken 21883 | . 278 141 80 1109 . 364 75 1465 291 573 82 665 973 749 . 275 . 457 470 601 283 974 128 2310 . 1033 560 7947 Core 5623 | . 65 12 . 150 . 13 13 337 90 59 25 139 111 130 . 24 . 90 33 70 . 114 9 260 . 119 77 3683 Absorbed by Shields 4440 | . . 57 32 148 . 6 . 87 35 . . 9 . 90 . 163 . 128 . 79 246 871 134 421 . 313 48 1573 Ignored by Resistances 209 | . . . . . . . . . . . . . . . . 39 . . . . . . . . . . . 170 Regen/Repaired (Parts) 2102 | . . . . . . . . . . . . 129 210 164 . . . 26 . 68 280 544 . . . . . 681 Core Remaining (%) 76 | 100 74 . . 70 . . . 84 . . . 60 . 89 . . . 89 . 91 . 91 . 82 . . . 11 Volleys Fired 1337 | 8 16 16 7 65 . 46 11 54 26 62 17 58 50 72 7 42 . 80 48 80 60 124 51 102 4 116 18 97 Largest 4 | 2 2 2 2 2 . 2 1 2 2 3 1 2 3 2 1 2 . 2 2 2 2 2 2 2 1 3 3 4 Hottest 334 | 70 46 50 50 126 . 126 5 126 96 111 5 74 163 178 5 240 . 240 240 240 240 240 240 240 120 334 334 285 Shots Fired 1727 | 16 32 32 14 117 . 64 11 62 37 73 17 69 63 85 7 49 . 87 49 85 68 165 69 133 4 142 25 152 Gun 371 | 16 32 32 14 107 . 43 . 34 11 . . . . 13 . . . . . . . . . 7 . . 1 61 Cannon 498 | . . . . . . . . . 11 20 . 34 27 19 . 19 . 18 2 10 18 90 40 79 3 49 17 42 Launcher 54 | . . . . 2 . 2 . 6 . . . . 13 1 . 3 . 4 . 10 . 7 4 2 . . . . Special 804 | . . . . 8 . 19 11 22 15 53 17 35 23 52 7 27 . 65 47 65 50 68 25 45 1 93 7 49 Kinetic 332 | 8 32 32 14 88 . 13 . . 11 20 . 34 11 . . . . . . . . . . 7 . . 1 61 Thermal 523 | 8 . . . 19 . 30 . 34 11 . . . 16 32 . 19 . 18 2 9 18 90 40 79 3 39 14 42 Explosive 54 | . . . . 2 . 2 . 6 . . . . 13 1 . 3 . 4 . 10 . 7 4 2 . . . . Electromagnetic 14 | . . . . . . . . . . . . . . . . . . . . 1 . . . . . 10 3 . Robot Hit Streak 28 | 4 19 10 3 8 . 6 6 10 14 5 6 8 6 19 20 10 . 28 21 16 20 26 9 19 4 12 5 22 Robot Miss Streak 19 | 4 4 4 3 7 . 6 1 2 3 19 2 7 9 3 1 1 . 1 2 2 1 2 4 3 . 2 1 3 Penetration Max 1 | . . . . . . . . . . . . . . . . . . . . . . . . . . . . 1 Secondary Targets 9 | . 2 2 . 4 . 1 . . . . . . . . . . . . . . . . . . . . . . Max Gunslinging Chain 1 | . 1 1 . 1 . 1 . . . . . . . . . . . . . . . . . . . . . . Shots Hit Robots 1319 | 7 25 23 11 90 . 37 11 55 26 71 12 55 38 67 5 36 . 69 42 61 58 134 42 96 1 101 13 133 Core Hits 472 | 6 12 14 6 45 . 15 . 14 6 24 . 32 26 16 . 10 . 23 1 28 5 55 36 32 . 11 3 52 Critical Kills 3 | . . . . . . . . . . . . . . 1 . . . . . . . 1 . 1 . . . . Critical Parts Destroyed 3 | . . . . 1 . . . . . . . . . . . . . . . . . . . . . . . 2 Critical Strikes 17 | . . . . 1 . 2 . 6 . . . . . 1 . . . . . . . 1 . 1 . 1 . 4 Burn 4 | . . . . . . 2 . 2 . . . . . . . . . . . . . . . . . . . . Meltdown 1 | . . . . . . . . . . . . . . . . . . . . . . 1 . . . . . . Destroy 6 | . . . . 1 . . . . . . . . . . . . . . . . . . . 1 . . . 4 Corrupt 1 | . . . . . . . . . . . . . . . . . . . . . . . . . . 1 . . Smash 1 | . . . . . . . . . . . . . . 1 . . . . . . . . . . . . . . Sever 4 | . . . . . . . . 4 . . . . . . . . . . . . . . . . . . . . Melee Attacks 235 | . 5 . . 16 . 37 2 28 1 51 6 11 . 20 . 6 . 4 7 5 11 14 . 9 . . . 2 Impact 111 | . 5 . . 16 . 37 . . . 16 6 11 . 20 . . . . . . . . . . . . . . Slashing 124 | . . . . . . . 2 28 1 35 . . . . . 6 . 4 7 5 11 14 . 9 . . . 2 Piercing . | . . . . . . . . . . . . . . . . . . . . . . . . . . . . . Sneak Attacks 7 | . . . . . . . 2 . 1 1 . 2 . 1 . . . . . . . . . . . . . . Combat Hostiles . | . . . . . . . . . . . . . . . . . . . . . . . . . . . . . Follow-up Attacks . | . . . . . . . . . . . . . . . . . . . . . . . . . . . . . Damage Inflicted 32677 | 102 360 395 210 2266 . 719 132 1153 381 1601 . 819 1170 1095 . 992 . 1212 56 1869 689 5149 3339 3641 . 1209 373 3745 Guns 6498 | 102 360 395 210 1578 . 509 . 482 131 . . . . 247 . . . . . . . . . 211 . . . 2273 Cannons 12880 | . . . . . . . . . 194 242 . 469 498 429 . 523 . 551 56 223 689 2775 1391 1953 . 1209 373 1305 Explosions 9495 | . . . . 383 . 210 . 242 . . . . 672 353 . 430 . 661 . 1646 . 1836 1948 1000 . . . 114 Melee 3787 | . . . . 305 . . 132 429 56 1359 . 350 . 66 . 39 . . . . . 538 . 475 . . . 38 Ramming 17 | . . . . . . . . . . . . . . . . . . . . . . . . 2 . . . 15 Kinetic 6202 | 37 360 395 210 1409 . 181 . . 194 242 . 469 221 . . . . . . . . . . 211 . . . 2273 Thermal 13080 | 65 . . . 169 . 328 . 482 131 . . . 277 676 . 523 . 551 56 189 689 2775 1391 1953 . 1062 344 1419 Explosive 9381 | . . . . 383 . 210 . 242 . . . . 672 353 . 430 . 661 . 1646 . 1836 1948 1000 . . . . Electromagnetic 210 | . . . . . . . . . . . . . . . . . . . . 34 . . . . . 147 29 . Impact 844 | . . . . 305 . . . . . 123 . 350 . 66 . . . . . . . . . . . . . . Slashing 2943 | . . . . . . . 132 429 56 1236 . . . . . 39 . . . . . 538 . 475 . . . 38 Piercing . | . . . . . . . . . . . . . . . . . . . . . . . . . . . . . Highest Corruption 44 | . . . . 17 . 3 . 17 . 8 8 10 1 1 . 4 . 6 . 4 4 4 4 13 . 19 19 44 Average Corruption 8 | . . . . 12 . 2 . 9 . 8 8 9 1 1 . 2 . 2 . 4 1 3 3 8 . 11 19 17 Corruption Purged . | . . . . . . . . . . . . . . . . . . . . . . . . . . . . . Corruption Blocked . | . . . . . . . . . . . . . . . . . . . . . . . . . . . . . Effects 326 | . . . . 43 . 6 . 21 . 2 19 39 3 1 . 2 . 12 . 3 4 28 4 41 . 42 11 45 Message Errors 66 | . . . . 12 . 2 . 7 . 2 5 3 1 . . 1 . 3 . . 1 4 . 4 . 10 3 8 Matter Fused 68 | . . . . 7 . . . 4 . . 4 11 1 . . 1 . 4 . . 1 5 3 8 . 11 . 8 Heat Flow Errors 33 | . . . . 3 . 3 . 2 . . 2 7 . . . . . . . . 1 4 . . . 1 1 9 Energy Discharges 39 | . . . . 9 . 1 . 1 . . 4 5 . 1 . . . 1 . 1 . 3 . 8 . 3 2 . Parts Rejected 7 | . . . . . . . . . . . . 1 . . . . . 1 . . . 1 . . . 2 . 2 Parts Fused 1 | . . . . 1 . . . . . . . . . . . . . . . . . . . . . . . . Data Loss (minor) 48 | . . . . 5 . . . 4 . . 3 3 1 . . . . . . . 1 6 1 10 . 9 2 3 Data Loss (major) 20 | . . . . 2 . . . 1 . . . 3 . . . . . 3 . 1 . 2 . 2 . 1 . 5 Misfires 13 | . . . . 2 . . . . . . . 4 . . . . . . . 1 . 1 . . . 1 1 3 Alerts 8 | . . . . 2 . . . 2 . . 1 . . . . . . . . . . 1 . . . 2 . . Misdirections 10 | . . . . . . . . . . . . . . . . . . . . . . . . 4 . 1 . 5 Weapon Failures 13 | . . . . . . . . . . . . 2 . . . . . . . . . 1 . 5 . 1 2 2 Overload Shots . | . . . . . . . . . . . . . . . . . . . . . . . . . . . . . Overflow Damage 1056 | . . . . 30 . . 62 55 16 73 . 78 21 17 . 29 . 39 . 12 127 221 82 185 . 9 . . Projectiles 440 | . . . . . . . . . . . . . . 2 . 17 . 26 . 12 127 100 65 82 . 9 . . Explosions 301 | . . . . 24 . . . 28 . . . . 21 15 . . . 13 . . . 121 17 62 . . . . Melee 315 | . . . . 6 . . 62 27 16 73 . 78 . . . 12 . . . . . . . 41 . . . . Knockbacks 25 | . . . . . . . . . 5 8 . 6 6 . . . . . . . . . . . . . . . Impact . | . . . . . . . . . . . . . . . . . . . . . . . . . . . . . Kinetic 25 | . . . . . . . . . 5 8 . 6 6 . . . . . . . . . . . . . . . Secondary . | . . . . . . . . . . . . . . . . . . . . . . . . . . . . . Self-Inflicted Damage 298 | . . . . 27 . 20 . 68 . . . . 105 . . . . . . 44 . 27 . 1 . . . 6 Shots 10 | . . . . 2 . 1 . 2 . . . . 2 . . . . . . 2 . 1 . . . . . . Rammed 4 | . . . . . . . . . . . . . . . . . . . . . . . . 1 . . . 3 Targets Rammed 4 | . . . . . . . . . . . . . . . . . . . . . . . . 1 . . . 3 Kicked . | . . . . . . . . . . . . . . . . . . . . . . . . . . . . . Crushed . | . . . . . . . . . . . . . . . . . . . . . . . . . . . . . Highest Temperature 425 | 27 27 . . 366 . 336 5 425 105 60 253 229 170 348 . 348 . 350 141 150 145 210 30 337 188 222 190 274 Average Temperature 83 | 12 6 . . 104 . 88 5 157 45 31 121 85 67 122 . 123 . 138 77 64 22 24 9 76 91 87 60 92 Received Heat Transfer 2041 | . 159 28 24 411 . 15 54 203 18 78 21 129 24 145 . 26 . 42 81 110 12 50 8 171 . 25 4 203 Effects 8 | . . . . . . . . 4 . . . . . . . . . 2 . . . . . 1 . . . 1 Shutdowns 2 | . . . . . . . . 1 . . . . . . . . . 1 . . . . . . . . . . Energy Bleed 2 | . . . . . . . . 1 . . . . . . . . . . . . . . . . . . . 1 Interference 1 | . . . . . . . . . . . . . . . . . . . . . . . . 1 . . . . Damage (minor) 1 | . . . . . . . . . . . . . . . . . . 1 . . . . . . . . . . Damage (major) 2 | . . . . . . . . 2 . . . . . . . . . . . . . . . . . . . . Siege Activations . | . . . . . . . . . . . . . . . . . . . . . . . . . . . . . Martial Activations . | . . . . . . . . . . . . . . . . . . . . . . . . . . . . . Shielding Activations . | . . . . . . . . . . . . . . . . . . . . . . . . . . . . . Robots Disrupted . | . . . . . . . . . . . . . . . . . . . . . . . . . . . . . Combat Hostiles . | . . . . . . . . . . . . . . . . . . . . . . . . . . . . . Robots Corrupted 1 | . . . . 1 . . . . . . . . . . . . . . . . . . . . . . . . Combat Hostiles . | . . . . . . . . . . . . . . . . . . . . . . . . . . . . . Parts Fried 3 | . . . . 1 . . . . . 1 . . . . . . . . . . . . . 1 . . . . Impact Corruptions 8 | . . . . 1 . . . . . 2 . 5 . . . . . . . . . . . . . . . . Robots Melted 4 | . . . . . . 1 . 1 . . . . . . . . . . . . . 2 . . . . . . Combat Hostiles 4 | . . . . . . 1 . 1 . . . . . . . . . . . . . 2 . . . . . . Parts Melted 27 | . . . . . . 3 . 3 . . . . 3 4 . 1 . 1 . 1 2 7 1 1 . . . . Heat Transferred 12829 | 185 . . . 370 . 777 . 1073 333 . . . 400 983 . 598 . 407 37 148 518 2294 1147 1591 . 887 182 899 Parts Sabotaged 4 | . . . . . . . . . . . . . . 2 . . . . . . . . . . . . . 2 Parts Stolen . | . . . . . . . . . . . . . . . . . . . . . . . . . . . . . Parts Stripped . | . . . . . . . . . . . . . . . . . . . . . . . . . . . . . Power Chain Reactions . | . . . . . . . . . . . . . . . . . . . . . . . . . . . . . Alert | -11 -10 -9 -9 -9 -8 -8 -8 -8 -7 -7 -7 -7 -6 -6 -5 -5 -5 -5 -4 -4 -3 -3 -2 -2 -1 -1 -1 -1 ------- Run | Yrd Mat Mat Sto Gar Mat Gar Mat Gar Fac Gar Fac Gar Fac Gar Fac Gar Fac Gar Fac Gar Res Gar Res Gar Acc Gar Acc Com Maximum Alert Level 5 | . . . . 3 2 4 3 4 2 3 2 4 3 4 3 4 3 5 4 4 3 3 2 1 . . . . Low Security (%) 22 | 100 100 100 100 23 . . . . 18 3 12 . . . . . . . . . 2 15 . 59 100 100 100 100 Level 1 15 | . . . . 9 . 14 37 4 42 17 79 7 19 . . . . . . 2 31 56 34 40 . . . . Level 2 27 | . . . . 60 100 29 59 20 39 21 8 12 74 61 71 11 . 12 76 20 63 9 65 . . . . . Level 3 19 | . . . . 6 . 24 2 64 . 57 . 18 6 36 28 14 100 18 3 43 2 18 . . . . . . Level 4 12 | . . . . . . 31 . 9 . . . 62 . 2 . 73 . 9 20 33 . . . . . . . . Level 5 2 | . . . . . . . . . . . . . . . . . . 58 . . . . . . . . . . High Security . | . . . . . . . . . . . . . . . . . . . . . . . . . . . . . Max Security . | . . . . . . . . . . . . . . . . . . . . . . . . . . . . . Peak Influence 2062 | 10 85 89 31 850 414 1418 700 1148 629 1091 572 1516 795 1194 903 1478 809 2062 1298 1253 704 946 549 368 137 132 79 44 Initial 1082 | . . 18 8 15 414 269 683 237 602 114 572 250 795 434 626 502 775 538 1082 289 704 118 531 300 131 85 79 . Average 599 | 1 37 37 9 415 414 879 510 851 359 708 280 1076 527 686 656 1166 759 1473 719 915 462 390 403 191 122 28 28 4 Influence Increases 18317 | 25 196 181 69 950 . 1323 68 1321 136 1147 337 1506 1049 1080 547 1146 114 1754 646 1144 382 1308 522 609 6 386 18 347 Destroy 0b10 Robot/C 6739 | . 120 120 40 600 . 620 20 600 80 400 160 580 420 360 220 400 . 680 80 360 75 396 132 156 . 48 . 72 Destroy 0b10 Robot/NC 224 | 25 5 15 5 5 . . 5 . 5 25 5 . 40 5 10 10 . . 5 . 8 9 27 6 . . . 9 Destroy Leader 598 | . 30 30 20 20 . 20 10 10 20 30 22 40 82 40 50 20 . 40 10 8 24 24 28 . . 6 . 14 Allied During Kill 4663 | . . . . 18 . 219 3 111 . 280 137 486 347 251 267 426 . 720 95 354 107 420 173 133 . 36 . 80 Successful Hack 291 | . 21 16 3 24 . 21 . 14 14 20 8 5 3 21 . 14 12 12 28 10 8 . 9 . . 9 . 19 Disable Machine 297 | . . . . . . . . . 15 . . . 90 . . . . 30 30 15 36 27 9 . . 9 18 18 Anti-Garrison Action 3456 | . . . . 200 . 350 . 550 . 300 . 300 . 350 . 200 . 200 150 226 . 210 . 210 . 210 . . Destroy Structure 1365 | . 5 . 1 53 . 93 . 36 2 92 5 50 67 23 . 61 . 72 32 171 112 177 144 104 6 23 . 36 Partial Spotted 12 | . . . . . . . . . . . . . . . . . . . . . 12 . . . . . . . Lose Combat Pursuer 354 | . 15 . . 30 . . 30 . . . . 45 . 30 . 15 . . . . . 45 . . . 45 . 99 Miscellaneous 318 | . . . . . . . . . . . . . . . . . 102 . 216 . . . . . . . . . Influence Decreases 18245 | 25 151 205 66 124 436 335 1104 539 1121 219 1070 348 1944 507 1023 386 823 461 2294 305 1477 520 1067 791 118 361 150 275 Entered New Map 7699 | . . 27 13 9 436 145 719 129 546 49 519 108 721 187 568 216 703 231 980 125 549 40 415 101 88 22 53 . Time Decay 2746 | 25 141 168 53 . . . 90 . 230 . 246 . 398 . 130 . 120 . 334 . 368 . 222 . 30 . 50 141 Lost Part 750 | . 10 10 . 115 . 10 . 150 10 10 . 40 30 50 . 10 . . 10 . 10 30 . 190 . 36 . 29 Lost Ally 4575 | . . . . . . 180 20 260 60 160 30 200 120 270 50 160 . 230 420 180 550 300 430 500 . 303 47 105 Purge Threat 2475 | . . . . . . . 275 . 275 . 275 . 675 . 275 . . . 550 . . 150 . . . . . . Squads Dispatched 51 | . 1 1 . . . . 2 . 1 . 4 . 5 . 3 . 1 . 8 . 12 . 8 . . . . 5 Investigation 5 | . 1 1 . . . . . . . . 1 . . . . . . . . . 1 . . . . . . 1 Extermination 11 | . . . . . . . . . . . 1 . 1 . . . 1 . 2 . 2 . 1 . . . . 3 Reinforcement 19 | . . . . . . . 1 . 1 . 1 . 3 . 1 . . . 3 . 4 . 4 . . . . 1 Assault 7 | . . . . . . . . . . . . . . . . . . . 2 . 3 . 2 . . . . . Garrison 9 | . . . . . . . 1 . . . 1 . 1 . 2 . . . 1 . 2 . 1 . . . . . Intercept . | . . . . . . . . . . . . . . . . . . . . . . . . . . . . . Searches Triggered . | . . . . . . . . . . . . . . . . . . . . . . . . . . . . . Construction Impeded 4 | . . . . . . . . . . . . . 1 . . . . . . . 2 . 1 . . . . . Haulers Reinforced 3 | . . . . . . . . . . . . . 1 . . . . . . . . . 2 . . . . . Active Scanning Responses . | . . . . . . . . . . . . . . . . . . . . . . . . . . . . . Cargo Convoy Interrupts . | . . . . . . . . . . . . . . . . . . . . . . . . . . . . . Alert ID Control Effect 222 | . . . . . . . . . . . . . . . . . . . 28 15 53 28 38 12 . 31 2 15 Stealth | -11 -10 -9 -9 -9 -8 -8 -8 -8 -7 -7 -7 -7 -6 -6 -5 -5 -5 -5 -4 -4 -3 -3 -2 -2 -1 -1 -1 -1 --------- Run | Yrd Mat Mat Sto Gar Mat Gar Mat Gar Fac Gar Fac Gar Fac Gar Fac Gar Fac Gar Fac Gar Res Gar Res Gar Acc Gar Acc Com Distress Signals 34 | . 2 . . . . . 1 . . . . . 5 3 . 1 . . 3 . 8 . 6 . . . . 5 Communications Jammed 964 | . . . . . . . . . . . . . . 7 . 6 . . 3 716 95 . 48 . . . . 89 Distress Signals 961 | . . . . . . . . . . . . . . 7 . 6 . . 3 716 92 . 48 . . . . 89 Times Spotted 952 | . 8 7 4 34 . 32 7 41 10 31 9 43 32 38 6 32 . 52 26 53 57 56 30 63 . 70 5 206 Peak Tracking Total 72 | . 6 4 2 7 . 6 4 6 4 4 3 8 8 6 2 9 . 8 4 10 4 13 6 10 . 7 2 72 Tactical Retreats 22 | . 1 . . 2 . . 2 . . . . 1 . 2 . 1 . . . . . 3 . 3 . 3 . 4 Traps | -11 -10 -9 -9 -9 -8 -8 -8 -8 -7 -7 -7 -7 -6 -6 -5 -5 -5 -5 -4 -4 -3 -3 -2 -2 -1 -1 -1 -1 ------- Run | Yrd Mat Mat Sto Gar Mat Gar Mat Gar Fac Gar Fac Gar Fac Gar Fac Gar Fac Gar Fac Gar Res Gar Res Gar Acc Gar Acc Com Traps Triggered 60 | . 1 . . 6 . 8 . 1 1 2 . 4 . 7 . 3 . 2 . 1 1 6 1 6 . 6 . 4 Indirectly . | . . . . . . . . . . . . . . . . . . . . . . . . . . . . . Trap Hack Attempts . | . . . . . . . . . . . . . . . . . . . . . . . . . . . . . Triggered . | . . . . . . . . . . . . . . . . . . . . . . . . . . . . . Disarmed . | . . . . . . . . . . . . . . . . . . . . . . . . . . . . . Reprogrammed . | . . . . . . . . . . . . . . . . . . . . . . . . . . . . . Reused . | . . . . . . . . . . . . . . . . . . . . . . . . . . . . . Traps Extracted . | . . . . . . . . . . . . . . . . . . . . . . . . . . . . . Installed . | . . . . . . . . . . . . . . . . . . . . . . . . . . . . . Triggered . | . . . . . . . . . . . . . . . . . . . . . . . . . . . . . Most Traps Carried 1 | . . . . . . . . . . . . . . 1 . . . . . . . . . . . . . . Machines | -11 -10 -9 -9 -9 -8 -8 -8 -8 -7 -7 -7 -7 -6 -6 -5 -5 -5 -5 -4 -4 -3 -3 -2 -2 -1 -1 -1 -1 ---------- Run | Yrd Mat Mat Sto Gar Mat Gar Mat Gar Fac Gar Fac Gar Fac Gar Fac Gar Fac Gar Fac Gar Res Gar Res Gar Acc Gar Acc Com Machines Disabled 84 | . . . . . . 4 . 8 1 3 . 7 6 5 . 4 . 7 4 6 3 10 1 4 . 7 2 2 Max in Single Turn 2 | . . . . . . 1 . 1 1 1 . 2 1 1 . 1 . 1 . 1 . 1 . 1 . 1 1 1 Garrison Access 5 | . . . . . . . . . . . . . 1 . . . . . 1 . 2 . 1 . . . . . Garrison Relay 52 | . . . . . . 4 . 8 . 4 . 5 . 5 . 4 . 4 . 5 . 5 . 3 . 5 . . Phase Generator 3 | . . . . . . . . 1 . . . 1 . . . . . 1 . . . . . . . . . . Machines Repaired . | . . . . . . . . . . . . . . . . . . . . . . . . . . . . . Machines Dismantled . | . . . . . . . . . . . . . . . . . . . . . . . . . . . . . Machines Sabotaged . | . . . . . . . . . . . . . . . . . . . . . . . . . . . . . Overloaded Fab Kills . | . . . . . . . . . . . . . . . . . . . . . . . . . . . . . Hacking | -11 -10 -9 -9 -9 -8 -8 -8 -8 -7 -7 -7 -7 -6 -6 -5 -5 -5 -5 -4 -4 -3 -3 -2 -2 -1 -1 -1 -1 --------- Run | Yrd Mat Mat Sto Gar Mat Gar Mat Gar Fac Gar Fac Gar Fac Gar Fac Gar Fac Gar Fac Gar Res Gar Res Gar Acc Gar Acc Com Machines Accessed 79 | . 4 4 4 4 1 2 1 3 4 3 4 3 6 2 2 1 2 1 5 3 8 2 2 1 1 2 . 4 Terminals 55 | . 4 4 3 4 . 2 . 3 2 3 . 3 3 2 1 1 1 1 1 3 4 2 1 1 . 2 . 4 Fabricators 2 | . . . . . . . . . 1 . 1 . . . . . . . . . . . . . . . . . Repair Stations . | . . . . . . . . . . . . . . . . . . . . . . . . . . . . . Recycling Units . | . . . . . . . . . . . . . . . . . . . . . . . . . . . . . Scanalyzers 7 | . . . . . . . . . . . 2 . 1 . . . . . 2 . 2 . . . . . . . Garrison Access 15 | . . . 1 . 1 . 1 . 1 . 1 . 2 . 1 . 1 . 2 . 2 . 1 . 1 . . . Total Hacks 160 | . 14 16 12 9 1 4 1 7 6 4 8 3 14 4 2 1 3 3 9 5 14 4 3 2 1 3 . 7 Successful 72 | . 8 7 4 2 1 2 1 1 2 2 3 2 9 2 1 1 2 1 7 2 4 1 2 . 1 1 . 3 Failed 86 | . 6 9 8 7 . 2 . 6 4 2 4 1 4 2 1 . 1 2 2 3 10 3 1 2 . 2 . 4 Catastrophic 16 | . 1 1 . 2 . . . 2 2 1 . 1 1 . 1 . . . 1 . 2 . . 1 . . . . Database Lockouts 2 | . . . . . . . . . . . 1 . 1 . . . . . . . . . . . . . . . Manual 38 | . 5 11 5 . . . . . 3 . 1 . 4 . 1 . 2 . 1 . 2 . 2 . . . . 1 Terminals 119 | . 14 16 9 9 . 4 . 7 3 4 . 3 8 4 1 1 2 3 2 5 6 4 2 2 . 3 . 7 Fabricators 3 | . . . . . . . . . 2 . 1 . . . . . . . . . . . . . . . . . Repair Stations . | . . . . . . . . . . . . . . . . . . . . . . . . . . . . . Recycling Units . | . . . . . . . . . . . . . . . . . . . . . . . . . . . . . Scanalyzers 20 | . . . . . . . . . . . 6 . 3 . . . . . 5 . 6 . . . . . . . Garrison Access 18 | . . . 3 . 1 . 1 . 1 . 1 . 3 . 1 . 1 . 2 . 2 . 1 . 1 . . . Terminal Hacks 32 | . 5 4 1 2 . 2 . 1 . 2 . 2 2 2 . 1 . 1 1 2 . 1 . . . 1 . 2 Record 2 | . 1 . . . . . . . . . . . . . . . . . 1 . . . . . . . . . Prototype ID Bank 1 | . . 1 . . . . . . . . . . . . . . . . . . . . . . . . . . Open Door 6 | . . . . . . 1 . . . 1 . 1 . 1 . . . . . . . 1 . . . . . 1 Branch Access Points 2 | . . 1 1 . . . . . . . . . . . . . . . . . . . . . . . . . Emergency Access Points 8 | . . . . 1 . 1 . 1 . . . 1 . 1 . . . 1 . 1 . . . . . 1 . . Repair Station Index 1 | . 1 . . . . . . . . . . . . . . . . . . . . . . . . . . . Scanalyzer Index 1 | . 1 . . . . . . . . . . . . . . . . . . . . . . . . . . . Unreport Threat 2 | . . . . . . . . . . . . . 2 . . . . . . . . . . . . . . . Locate Traps 2 | . 1 . . . . . . . . . . . . . . . . . . . . . . . . . . 1 Maintenance Status 1 | . . 1 . . . . . . . . . . . . . . . . . . . . . . . . . . Zone Layout 2 | . 1 1 . . . . . . . . . . . . . . . . . . . . . . . . . . Garrison Registry 2 | . . . . 1 . . . . . . . . . . . . . . . 1 . . . . . . . . Security Stations 2 | . . . . . . . . . . 1 . . . . . 1 . . . . . . . . . . . . Fabricator Hacks 1 | . . . . . . . . . . . 1 . . . . . . . . . . . . . . . . . Build 1 | . . . . . . . . . . . 1 . . . . . . . . . . . . . . . . . Repair Station Hacks . | . . . . . . . . . . . . . . . . . . . . . . . . . . . . . Recycling Unit Hacks . | . . . . . . . . . . . . . . . . . . . . . . . . . . . . . Scanalyzer 9 | . . . . . . . . . . . 1 . 2 . . . . . 4 . 2 . . . . . . . Retrieve Study 9 | . . . . . . . . . . . 1 . 2 . . . . . 4 . 2 . . . . . . . Garrison Access Hacks 16 | . . . 1 . 1 . 1 . 1 . 1 . 3 . 1 . 1 . 2 . 2 . 1 . 1 . . . Unlock Access 13 | . . . 1 . 1 . 1 . 1 . 1 . 1 . 1 . 1 . 2 . 1 . 1 . 1 . . . Seal Access 2 | . . . . . . . . . . . . . 1 . . . . . . . 1 . . . . . . . Coupler Status 1 | . . . . . . . . . . . . . 1 . . . . . . . . . . . . . . . Unauthorized Hacks 14 | . 3 3 2 . . . . . 1 . . . 2 . . . 1 . . . . . 1 . . . . 1 Terminals 14 | . 3 3 2 . . . . . 1 . . . 2 . . . 1 . . . . . 1 . . . . 1 Botnet 14 | . 3 3 2 . . . . . 1 . . . 2 . . . 1 . . . . . 1 . . . . 1 Fabricators . | . . . . . . . . . . . . . . . . . . . . . . . . . . . . . Repair Stations . | . . . . . . . . . . . . . . . . . . . . . . . . . . . . . Recycling Units . | . . . . . . . . . . . . . . . . . . . . . . . . . . . . . Scanalyzers . | . . . . . . . . . . . . . . . . . . . . . . . . . . . . . Garrison Access . | . . . . . . . . . . . . . . . . . . . . . . . . . . . . . Data Cores Recovered 3 | . 1 . 1 . . . . . . . . . . . . . . . 1 . . . . . . . . . Used 1 | . . . . . . . . . . . . . . . . . . . 1 . . . . . . . . . Hacking Detections 59 | . 3 3 3 4 1 1 . 3 3 2 4 1 5 1 1 1 2 1 3 1 6 2 2 1 1 1 . 3 Full Trace Events 8 | . . 1 . 2 . 1 . 1 . 1 1 . . . . . . . . . . . . 1 . . . . Feedback Events . | . . . . . . . . . . . . . . . . . . . . . . . . . . . . . Feedback Blocked . | . . . . . . . . . . . . . . . . . . . . . . . . . . . . . Robot Schematics Acquired . | . . . . . . . . . . . . . . . . . . . . . . . . . . . . . Robots Built 1 | . . . . . . . . . . . 1 . . . . . . . . . . . . . . . . . Authchips . | . . . . . . . . . . . . . . . . . . . . . . . . . . . . . Time 81 | . . . . . . . . . . . 81 . . . . . . . . . . . . . . . . . Total Robot Build Rating 1 | . . . . . . . . . . . 1 . . . . . . . . . . . . . . . . . Part Schematics Acquired . | . . . . . . . . . . . . . . . . . . . . . . . . . . . . . Parts Built . | . . . . . . . . . . . . . . . . . . . . . . . . . . . . . Authchips . | . . . . . . . . . . . . . . . . . . . . . . . . . . . . . Time . | . . . . . . . . . . . . . . . . . . . . . . . . . . . . . Total Part Build Rating . | . . . . . . . . . . . . . . . . . . . . . . . . . . . . . Part Studies Acquired 8 | . . . . . . . . . . . 1 . 2 . . . . . 3 . 2 . . . . . . . Parts Repaired . | . . . . . . . . . . . . . . . . . . . . . . . . . . . . . Time . | . . . . . . . . . . . . . . . . . . . . . . . . . . . . . Parts Recycled . | . . . . . . . . . . . . . . . . . . . . . . . . . . . . . Recycled Matter . | . . . . . . . . . . . . . . . . . . . . . . . . . . . . . Retrieved Matter . | . . . . . . . . . . . . . . . . . . . . . . . . . . . . . Retrieved Components . | . . . . . . . . . . . . . . . . . . . . . . . . . . . . . Parts Scanalyzed . | . . . . . . . . . . . . . . . . . . . . . . . . . . . . . Part Schematics Acquired . | . . . . . . . . . . . . . . . . . . . . . . . . . . . . . Parts Damaged . | . . . . . . . . . . . . . . . . . . . . . . . . . . . . . Bothacking | -11 -10 -9 -9 -9 -8 -8 -8 -8 -7 -7 -7 -7 -6 -6 -5 -5 -5 -5 -4 -4 -3 -3 -2 -2 -1 -1 -1 -1 ------------ Run | Yrd Mat Mat Sto Gar Mat Gar Mat Gar Fac Gar Fac Gar Fac Gar Fac Gar Fac Gar Fac Gar Res Gar Res Gar Acc Gar Acc Com Used RIF Installer 17 | . . . . 1 . 1 . 1 . 1 . 1 . 2 . 1 . 2 . 2 . 2 . 2 . 1 . . Coupler Efficiency 3 | . . . . . . 1 . . . . . . . . . . . . . . . . . 1 . 1 . . Hotswap 1 | . . . . . . . . 1 . . . . . . . . . . . . . . . . . . . . Code Merge 1 | . . . . . . 1 . . . . . . . . . . . . . . . . . . . . . . Command Fork 1 | . . . . . . . . . . . . . . . . . . . . . . . . 1 . . . . Threat Obfuscator 2 | . . . . . . . . . . . . . . . . . . . . 1 . 1 . . . . . . Signal Jammer 1 | . . . . . . . . . . . . . . 1 . . . . . . . . . . . . . . Robot Detection 1 | . . . . . . . . . . . . . . . . . . . . 1 . . . . . . . . Watcher Feeds 1 | . . . . . . . . . . . . . . . . 1 . . . . . . . . . . . . Patrol Navigation 1 | . . . . . . . . . . 1 . . . . . . . . . . . . . . . . . . Alert ID Control 1 | . . . . . . . . . . . . . . . . . . 1 . . . . . . . . . . Structural Interface 1 | . . . . . . . . . . . . . . 1 . . . . . . . . . . . . . . Program Shield 1 | . . . . . . . . . . . . . . . . . . . . . . 1 . . . . . . Autooverride 1 | . . . . . . . . . . . . 1 . . . . . . . . . . . . . . . . Autoassimilate 1 | . . . . . . . . . . . . . . . . . . 1 . . . . . . . . . . Robots Hacked 391 | . . . . 2 . 10 7 12 6 20 7 19 7 20 4 19 . 29 22 23 40 14 16 20 1 51 4 38 Non-combat 41 | . . . . . . . 1 . 2 1 2 . 5 . 1 . . 3 6 1 7 1 2 . 1 . 2 6 Combat 350 | . . . . 2 . 10 6 12 4 19 5 19 2 20 3 19 . 26 16 22 33 13 14 20 . 51 2 32 Autooverrided 25 | . . . . . . . . . . . . 1 . 1 1 1 . 3 1 1 4 . 1 1 . 5 . 5 Autoassimilated 40 | . . . . . . . . . . . . . . . . . . . 1 2 8 2 6 2 . 7 . 12 Robot Hacks Applied 362 | . . . . 2 . 10 9 12 9 21 11 18 12 19 5 18 . 28 28 20 30 14 12 17 1 39 5 22 parse_system 12 | . . . . . . . . . . 2 1 . . . . . . 1 . . . 2 2 . . 4 . . start_evac 1 | . . . . . . . . . . . . . . . . . . . . . 1 . . . . . . . hold_bot 1 | . . . . . . . . . . . . . . . . . . . . . . . 1 . . . . . map_walls 1 | . . . . . . . . . . . . . . . . . . . . . . . . . 1 . . . drop_inventory 3 | . . . . . . . . . . . . . . . . . . . . . 2 . . . . . 1 . ignore_parts 4 | . . . . . . . . . . . . . . . . . . . . . . . . . . . 1 3 purge_threat 18 | . . . . . . . 2 . 2 . 2 . 3 . 2 . . . 6 . . 1 . . . . . . map_route 4 | . . . . . . . . . . . . . 1 . . . . . 1 . 1 . . . . . . 1 emergency_deploy 1 | . . . . . . . . . . . . . . 1 . . . . . . . . . . . . . . find_garrison 10 | . . . . . . . . . 1 . 1 . . . 1 . . . 2 . 2 . 2 . . . 1 . overload_power 4 | . . . . . . . . . . . . . . . . . . 1 . 1 . . . . . 2 . . reboot_system 18 | . . . . . . 1 . 1 . 1 . 3 1 1 . . . . . 3 . 2 1 . . 2 . 2 overwrite_iff 46 | . . . . . . . . 1 2 . 3 3 . 3 . 5 . 1 2 4 3 . 2 5 . 10 1 1 formatsys_low 19 | . . . . . . . 1 . 1 1 1 . 2 . 1 . . 2 5 . 2 1 . . . . . 2 formatsys_high 218 | . . . . 2 . 9 6 10 3 17 3 12 5 14 1 12 . 23 11 12 19 8 4 12 . 21 1 13 formatsys_deep 2 | . . . . . . . . . . . . . . . . 1 . . 1 . . . . . . . . . Relay Couplers Released 213 | . . . . . . 13 . 31 . 16 . 20 . 20 . 21 . 18 1 20 . 20 3 13 . 17 . . Machine Destruction 209 | . . . . . . 13 . 31 . 16 . 20 . 20 . 17 . 18 1 20 . 20 3 13 . 17 . . Programmers 4 | . . . . . . . . . . . . . . . . 4 . . . . . . . . . . . . Attached 74 | . . . . 1 . 6 2 7 1 5 1 3 2 6 . 6 . 7 1 6 2 6 . 4 . 4 . 4 Merged Code Value 640 | . . . . . . 63 . 73 . 61 . 64 . 16 . 56 . 94 . 88 . 65 8 7 . 45 . . Fabnet Peak Effective % . | . . . . . . . . . . . . . . . . . . . . . . . . . . . . . Robots Rewired 79 | . . . . 3 . . . . . 4 . . . 11 . . . 10 . 7 . 18 . 6 . 20 . . Allies Hacked 15 | . . . . . . . . 2 . . . . 1 . . 1 . 3 1 . 4 . . 2 . . . 1 Hacks Repelled . | . . . . . . . . . . . . . . . . . . . . . . . . . . . . . Allies | -11 -10 -9 -9 -9 -8 -8 -8 -8 -7 -7 -7 -7 -6 -6 -5 -5 -5 -5 -4 -4 -3 -3 -2 -2 -1 -1 -1 -1 -------- Run | Yrd Mat Mat Sto Gar Mat Gar Mat Gar Fac Gar Fac Gar Fac Gar Fac Gar Fac Gar Fac Gar Res Gar Res Gar Acc Gar Acc Com Total Allies 484 | . . . . 5 . 15 7 11 9 25 8 18 6 31 3 22 . 42 23 26 35 29 18 33 . 71 3 44 Largest Group 49 | . . . . 5 5 7 7 9 7 22 26 19 23 23 19 25 22 47 49 32 37 25 26 13 10 30 26 25 Highest-Rated Group 2064 | . . . . 40 40 190 158 188 174 654 740 477 572 753 660 1028 921 1886 2064 1453 1713 1478 1543 656 510 1727 1543 1670 Highest-Rated Ally 206 | . . . . 8 8 39 34 34 30 62 62 62 85 80 80 80 80 95 142 95 116 119 119 148 89 99 89 206 Total Orders 44 | . . . . . . . . 1 . 4 . 7 3 1 . 2 . 2 . 4 1 10 . . . . . 9 STAY 7 | . . . . . . . . 1 . 2 . 2 . . . 1 . . . 1 . . . . . . . . FOLLOW 8 | . . . . . . . . . . 2 . 2 . . . 1 . . . 2 . . . . . . . 1 AID 29 | . . . . . . . . . . . . 3 3 1 . . . 2 . 1 1 10 . . . . . 8 Ally Attacks 2791 | . . . . 11 . 142 10 80 3 61 46 107 104 87 50 151 . 149 185 131 254 162 205 204 . 281 54 314 Total Damage 86180 | . . . . 92 . 2190 87 1540 60 1335 956 2558 1959 1601 1186 3628 . 3914 6329 4243 10061 6168 8400 5418 . 7978 2298 14179 Kills 480 | . . . . 4 . 24 1 19 . 17 9 25 20 13 13 21 . 26 35 23 66 33 43 32 . 34 3 19 Allies Corrupted 23 | . . . . . . . 1 . . . . . . . . 1 . 1 4 . 4 . 1 4 . 1 . 6 Allies Melted 4 | . . . . . . . . . . . . . . . . 2 . . . . . . . 1 . . . 1 X0-1V1 Amusement Gains 183 | . 4 . . 35 5 20 . 68 . . . . . . . . . . . . . . 2 . . . . 49 Average Entertainment 84 | . 4 2 1 17 26 29 32 71 100 100 100 100 100 100 100 100 100 100 100 100 100 99 98 100 100 100 100 70 Good Acts 160 | . . 4 1 11 . 9 2 16 3 2 2 11 9 13 1 4 2 8 2 6 6 10 8 12 . . . 18 Bad Acts 74 | . . . 2 8 . 5 1 5 . 4 1 2 7 1 . 3 1 6 4 3 2 1 . 4 . 9 1 4 Intel | -11 -10 -9 -9 -9 -8 -8 -8 -8 -7 -7 -7 -7 -6 -6 -5 -5 -5 -5 -4 -4 -3 -3 -2 -2 -1 -1 -1 -1 ------- Run | Yrd Mat Mat Sto Gar Mat Gar Mat Gar Fac Gar Fac Gar Fac Gar Fac Gar Fac Gar Fac Gar Res Gar Res Gar Acc Gar Acc Com Active Infowar (turns) 413 | 31 334 . . . . . . . . . . . . . . . . . . . . 48 . . . . . . Optics 48 | . . . . . . . . . . . . . . . . . . . . . . 48 . . . . . . Terrain 365 | 31 334 . . . . . . . . . . . . . . . . . . . . . . . . . . . Robot Analysis Total . | . . . . . . . . . . . . . . . . . . . . . . . . . . . . . Derelict Logs Recovered . | . . . . . . . . . . . . . . . . . . . . . . . . . . . . . Drone Launches . | . . . . . . . . . . . . . . . . . . . . . . . . . . . . . Drone Recoveries . | . . . . . . . . . . . . . . . . . . . . . . . . . . . . . Exploration | -11 -10 -9 -9 -9 -8 -8 -8 -8 -7 -7 -7 -7 -6 -6 -5 -5 -5 -5 -4 -4 -3 -3 -2 -2 -1 -1 -1 -1 ------------- Run | Yrd Mat Mat Sto Gar Mat Gar Mat Gar Fac Gar Fac Gar Fac Gar Fac Gar Fac Gar Fac Gar Res Gar Res Gar Acc Gar Acc Com Turns Passed 21834 | 116 379 353 149 1283 8 1544 192 1359 490 1252 538 1026 955 1227 264 1013 245 1111 744 1133 858 1494 477 946 70 1254 210 1144 Spaces Moved 15254 | 82 241 265 94 732 5 1024 115 862 355 883 465 788 839 865 193 836 210 801 544 775 643 1045 313 594 49 783 106 747 Core 110 | 3 . . . . . . . 1 . . . . . . . . . . . . . . . . . . . 106 Treads . | . . . . . . . . . . . . . . . . . . . . . . . . . . . . . Legs 2327 | . . . . 310 5 1024 115 861 12 . . . . . . . . . . . . . . . . . . . Wheels 12817 | 79 241 265 94 422 . . . . 343 883 465 788 839 865 193 836 210 801 544 775 643 1045 313 594 49 783 106 641 Hover . | . . . . . . . . . . . . . . . . . . . . . . . . . . . . . Flight . | . . . . . . . . . . . . . . . . . . . . . . . . . . . . . Fastest Speed 50 | 50 80 95 95 95 120 120 120 120 105 105 95 95 98 98 100 101 101 101 105 90 105 105 105 90 106 106 106 50 Average Speed 107 | 78 90 95 95 124 120 120 120 124 107 105 99 99 99 99 100 101 101 103 105 104 105 105 105 106 106 121 122 113 Slowest Speed 650 | 80 95 95 95 190 120 190 120 650 330 105 105 110 101 105 101 115 101 105 105 105 105 120 105 130 106 126 126 145 Overloaded Moves . | . . . . . . . . . . . . . . . . . . . . . . . . . . . . . Propulsion Burnouts . | . . . . . . . . . . . . . . . . . . . . . . . . . . . . . Robots Hopped . | . . . . . . . . . . . . . . . . . . . . . . . . . . . . . Potential Cave-ins . | . . . . . . . . . . . . . . . . . . . . . . . . . . . . . Cave-ins Triggered . | . . . . . . . . . . . . . . . . . . . . . . . . . . . . . Exploration Rate (%) 46 | 3 50 27 20 66 2 87 8 93 12 96 17 95 31 98 6 99 7 94 25 81 36 99 24 51 6 96 4 29 Regions Visited 28 Branch Regions 2 Pre-discovered Areas . | . . . . . . . . . . . . . . . . . . . . . . . . . . . . . Known Exits Taken 13 | . . 1 1 . 1 . 1 . 1 . 1 . 1 . 1 . 1 . 1 . 1 . 1 . 1 . . . Unknown Exits Taken 3 | 1 1 . . . . . . . . . . . . . . . . . . . . . . . . . 1 . Scrap Searched . | . . . . . . . . . . . . . . . . . . . . . . . . . . . . . Spaces Dug 63 | . 5 . . 1 . 2 . 1 . 2 5 . . 5 . . . 2 7 1 8 2 4 10 3 . . 5 Terrain Destroyed 637 | . 5 . . 22 . 8 . 15 1 2 5 71 74 8 . 20 . 36 7 119 12 67 65 80 3 5 . 12 Melee 38 | . 5 . . 1 . 2 . 1 . 2 5 . . 5 . . . . 7 1 8 1 . . . . . . Projectile 81 | . . . . . . . . . 1 . . . 3 . . . . 5 . 1 4 14 8 26 3 5 . 11 AOE 517 | . . . . 21 . 6 . 14 . . . 71 71 3 . 20 . 31 . 117 . 52 57 54 . . . . Terrain Rammed . | . . . . . . . . . . . . . . . . . . . . . . . . . . . . . Walls Destroyed . | . . . . . . . . . . . . . . . . . . . . . . . . . . . . . Machines Disabled . | . . . . . . . . . . . . . . . . . . . . . . . . . . . . . Actions | -11 -10 -9 -9 -9 -8 -8 -8 -8 -7 -7 -7 -7 -6 -6 -5 -5 -5 -5 -4 -4 -3 -3 -2 -2 -1 -1 -1 -1 --------- Run | Yrd Mat Mat Sto Gar Mat Gar Mat Gar Fac Gar Fac Gar Fac Gar Fac Gar Fac Gar Fac Gar Res Gar Res Gar Acc Gar Acc Com Total 19147 | 114 359 334 139 955 7 1211 158 1053 433 1082 521 962 913 1136 261 962 244 1020 689 1036 782 1318 418 828 64 1036 168 944 Wait 1255 | 10 78 40 36 48 . 36 17 34 13 40 28 60 12 109 49 17 24 78 78 140 53 46 42 48 9 51 33 26 Move 15234 | 81 240 264 94 731 5 1023 114 861 355 882 464 787 839 864 193 835 210 800 543 774 643 1044 313 593 49 782 105 746 Hop . | . . . . . . . . . . . . . . . . . . . . . . . . . . . . . Pick Up 216 | 8 7 7 2 19 . 13 3 16 5 9 2 9 1 13 4 14 6 16 3 3 7 18 3 11 . 12 1 4 Fast Attach 94 | 6 2 2 . 12 . 2 . 13 6 1 . 2 1 5 1 1 . 1 1 3 . 3 . 9 1 12 4 6 Attach 83 | 1 1 3 . 8 2 . 1 10 2 1 1 3 4 6 1 3 . 1 3 . 2 2 5 11 . 3 . 9 Detach 17 | . . . . 1 . . . 5 . . . 1 1 2 . . . . 2 1 . . 2 2 . . . . Swap 163 | . 4 . . 17 . 19 5 16 6 15 . 3 2 9 1 10 . 12 2 14 4 10 1 3 1 3 3 3 Drop 155 | . 6 2 . 19 . 9 1 15 11 8 2 4 2 3 4 14 4 9 . 4 2 16 1 6 . 5 4 4 Fire 1337 | 8 16 16 7 65 . 46 11 54 26 62 17 58 50 72 7 42 . 80 48 80 60 124 51 102 4 116 18 97 Melee 235 | . 5 . . 16 . 37 2 28 1 51 6 11 . 20 . 6 . 4 7 5 11 14 . 9 . . . 2 Ram 6 | . . . . . . . . . . . . . . . . . . . . . . . . 1 . . . 5 Kick . | . . . . . . . . . . . . . . . . . . . . . . . . . . . . . Crush . | . . . . . . . . . . . . . . . . . . . . . . . . . . . . . Escape Stasis 311 | . . . . 17 . 25 . . 8 8 . 24 . 32 . 16 . 16 . 8 . 40 . 32 . 47 . 38 Rewire 41 | . . . . 2 . 1 4 1 . 5 1 . 1 1 1 4 . 3 2 4 . 1 . 1 . 5 . 4 Trap . | . . . . . . . . . . . . . . . . . . . . . . . . . . . . . Miscellaneous . | . . . . . . . . . . . . . . . . . . . . . . . . . . . . . Route ------- -11/Scrapyard -10/Materials (discovered 3 exits: *Mat / [*Min] / [*Sub]) -9/Materials (discovered 4 exits: Mat / Min / *Sto x2) -9/Storage (discovered 2 exits: Rec / Gar) -9/Garrison (discovered 3 exits: *Mat x3) -8/Materials -8/Garrison (discovered 3 exits: *Mat x3) -8/Materials -8/Garrison (discovered 3 exits: *Fac x3) -7/Factory -7/Garrison (discovered 4 exits: *Fac x4) -7/Factory (discovered 2 exits: *Fac / Gar) -7/Garrison (discovered 3 exits: *Fac x3) -6/Factory (discovered 3 exits: Fac x2 / Gar) -6/Garrison (discovered 3 exits: *Fac x3) -5/Factory -5/Garrison (discovered 3 exits: *Fac x3) -5/Factory (discovered 2 exits: Fac / Gar) -5/Garrison (discovered 3 exits: *Fac x3) -4/Factory (discovered 4 exits: Res / [*Upp] / [*Arm] / Gar) -4/Garrison (discovered 3 exits: *Res x3) -3/Research (discovered 2 exits: [*Qua] / Gar) -3/Garrison (discovered 3 exits: *Res x3) -2/Research -2/Garrison (discovered 3 exits: *Acc x3) -1/Access -1/Garrison (discovered 3 exits: [*Acc x3]) -1/Access -1/Command To Epsilon Eridani History --------- Turn | Location | Event 15 | -11/Scrapyard | Discovered new exit (range 16) 117 | -11/Scrapyard | Entered Materials 197 | -10/Materials | Discovered new exit (range 13) 316 | -10/Materials | Build established: Mutant 397 | -10/Materials | Discovered new exit (range 5) 450 | -10/Materials | Prayed at D.C.S.S. Altar Unit 476 | -10/Materials | Discovered new exit (range 16) 496 | -10/Materials | Entered another Materials area 496 | -9/Materials | Evolved 2 slots: Propulsion x1, Utility x1 693 | -9/Materials | Identified exit to Materials 693 | -9/Materials | X0-1V1 revealed exit location to -8/Materials 702 | -9/Materials | Propulsion slot count permanently improved by X0-1V1 (+1) 751 | -9/Materials | Discovered new exit (range 5) 807 | -9/Materials | Identified exit to Mines 807 | -9/Materials | Identified exit to Storage 849 | -9/Materials | Entered Storage 862 | -9/Storage | Identified exit to Recycling 880 | -9/Storage | Inventory capacity permanently improved by X0-1V1 (+2; -200 max core) 890 | -9/Storage | X0-1V1 redirected Transport squads to designated parking area 998 | -9/Storage | Identified exit to Garrison 998 | -9/Storage | Entered Garrison 1052 | -9/Garrison | Triggered checkpoint 1064 | -9/Garrison | Lost 4 parts (1p3n) 1065 | -9/Garrison | X0-1V1 activates XOMVISION 1171 | -9/Garrison | Core integrity permanently improved by X0-1V1 (+300) 1246 | -9/Garrison | X0-1V1 upgraded hostiles (x2) 1390 | -9/Garrison | X0-1V1 caused items to flee you 1439 | -9/Garrison | System corruption reached 10% 1440 | -9/Garrison | Destroyed 7 combat bots 1447 | -9/Garrison | Lost 5 parts (2n1u2w) 1559 | -9/Garrison | Discovered exit to Materials (range 10) 1573 | -9/Garrison | Build established: Scavenger-Mutant 1586 | -9/Garrison | Items stopped fleeing you 1646 | -9/Garrison | X0-1V1 vaporized surrounding terrain (radius 23) 1738 | -9/Garrison | Triggered checkpoint 1834 | -9/Garrison | Triggered checkpoint 2103 | -9/Garrison | Installed Relay Interface Framework 2223 | -9/Garrison | Discovered exit to Materials (range 50) 2223 | -9/Garrison | Discovered exit to Materials (range 20) 2223 | -9/Garrison | Discovered exit to Materials (range 67) 2281 | -9/Garrison | Entered Materials 2281 | -8/Materials | Accompanied by 5 allies 2281 | -8/Materials | Evolved 2 slots: Utility x1, Weapon x1 2289 | -8/Materials | Identified exit to Garrison 2289 | -8/Materials | Entered Garrison 2289 | -8/Garrison | Accompanied by 5 allies 2307 | -8/Garrison | Expanded RIF knowledge: Coupler Efficiency 2352 | -8/Garrison | Triggered checkpoint 2379 | -8/Garrison | Garrison Relay disabled 2426 | -8/Garrison | X0-1V1 activates XOMVISION 2537 | -8/Garrison | Triggered checkpoint 2545 | -8/Garrison | Triggered checkpoint 2617 | -8/Garrison | Triggered checkpoint 2672 | -8/Garrison | Expanded RIF knowledge: Code Merge 2753 | -8/Garrison | Discovered new exit (range 10) 2839 | -8/Garrison | Triggered checkpoint 2891 | -8/Garrison | Triggered checkpoint 2926 | -8/Garrison | Triggered checkpoint 2931 | -8/Garrison | Lost 3 allies 2958 | -8/Garrison | X0-1V1 upgraded ally (x4) 2963 | -8/Garrison | Build established: Bothacker-Mutant 2967 | -8/Garrison | X0-1V1 caused items to flee you 3021 | -8/Garrison | Triggered checkpoint 3083 | -8/Garrison | Discovered new exit (range 10) 3119 | -8/Garrison | Items stopped fleeing you 3144 | -8/Garrison | Garrison Relay disabled 3204 | -8/Garrison | Identified exit to Materials 3204 | -8/Garrison | X0-1V1 revealed exit location to -8/Materials 3216 | -8/Garrison | Garrison Relay disabled 3352 | -8/Garrison | Triggered checkpoint 3522 | -8/Garrison | Rescued a captive Derelict 3523 | -8/Garrison | Rescued a captive Derelict 3650 | -8/Garrison | Found Powered Armor 3721 | -8/Garrison | X0-1V1 activates XOMVISION 3759 | -8/Garrison | Spotted B-75 Beast 3825 | -8/Garrison | Lost 3 allies 3833 | -8/Garrison | Entered Materials 3833 | -8/Materials | Accompanied by 2 allies 3912 | -8/Materials | X0-1V1 foreshadows a heat wave 3991 | -8/Materials | Garrison activated, responded to threat 4015 | -8/Materials | Identified exit to Garrison 4025 | -8/Materials | Entered Garrison 4025 | -8/Garrison | Accompanied by 7 allies 4061 | -8/Garrison | P-60 Hacker assimilated allied Trooper 3h 4061 | -8/Garrison | Garrison Relay disabled 4090 | -8/Garrison | Garrison Relay disabled 4108 | -8/Garrison | Garrison Relay disabled 4119 | -8/Garrison | Garrison Relay disabled 4165 | -8/Garrison | Triggered checkpoint 4191 | -8/Garrison | Garrison Relay disabled 4294 | -8/Garrison | Lost 5 allies 4296 | -8/Garrison | System corruption reached 10% 4315 | -8/Garrison | Lost 7 parts (4n1u2w) 4459 | -8/Garrison | Discovered new exit (range 9) 4504 | -8/Garrison | Garrison Relay disabled 4572 | -8/Garrison | X0-1V1 destroyed Phase Generator 4572 | -8/Garrison | Phase Generator disabled 4621 | -8/Garrison | X0-1V1 activates XOMVISION 4642 | -8/Garrison | Core integrity restored by X0-1V1 (+130) 4767 | -8/Garrison | Triggered checkpoint 4794 | -8/Garrison | Garrison Relay disabled 4869 | -8/Garrison | Discovered new exit (range 10) 4975 | -8/Garrison | Lost 3 parts (1p2u) 5085 | -8/Garrison | Triggered checkpoint 5157 | -8/Garrison | Discovered new exit (range 3) 5181 | -8/Garrison | Expanded RIF knowledge: Hotswap 5191 | -8/Garrison | Triggered checkpoint 5219 | -8/Garrison | Core integrity restored by X0-1V1 (+130) 5234 | -8/Garrison | Lost 3 allies 5249 | -8/Garrison | Garrison Relay disabled 5384 | -8/Garrison | Entered Factory 5384 | -7/Factory | Accompanied by 2 allies 5384 | -7/Factory | Evolved 2 slots: Utility x1, Weapon x1 5655 | -7/Factory | X0-1V1 sent you to a vault 5826 | -7/Factory | Build established: Botlord-Gunner 5868 | -7/Factory | Identified exit to Garrison 5874 | -7/Factory | Entered Garrison 5874 | -7/Garrison | Accompanied by 7 allies 5962 | -7/Garrison | Triggered checkpoint 5978 | -7/Garrison | Garrison Relay disabled 6092 | -7/Garrison | Triggered checkpoint 6110 | -7/Garrison | Triggered checkpoint 6113 | -7/Garrison | Lost 3 allies 6128 | -7/Garrison | Triggered checkpoint 6186 | -7/Garrison | Triggered checkpoint 6215 | -7/Garrison | Garrison Relay disabled 6302 | -7/Garrison | Discovered new exit (range 10) 6321 | -7/Garrison | Rescued a captive Derelict 6330 | -7/Garrison | Rescued a captive Derelict 6427 | -7/Garrison | Expanded RIF knowledge: Patrol Navigation 6436 | -7/Garrison | Triggered checkpoint 6453 | -7/Garrison | Garrison Relay disabled 6456 | -7/Garrison | Lost 3 allies 6498 | -7/Garrison | Discovered new exit (range 12) 6524 | -7/Garrison | Triggered checkpoint 6618 | -7/Garrison | Discovered new exit (range 5) 6645 | -7/Garrison | X0-1V1 rewrote Guardian 4b IFF filter 6716 | -7/Garrison | Identified exit to Factory 6716 | -7/Garrison | X0-1V1 revealed exit location to -7/Factory 6758 | -7/Garrison | Triggered checkpoint 6852 | -7/Garrison | Learned Factory security intel 7051 | -7/Garrison | Build established: Commander-Gunner 7126 | -7/Garrison | Entered Factory 7126 | -7/Factory | Accompanied by 22 allies 7412 | -7/Factory | Fabricated A-02 Transporter? 7489 | -7/Factory | Discovered new exit (range 14) 7550 | -7/Factory | Central database locked down 7566 | -7/Factory | Garrison activated, responded to threat 7622 | -7/Factory | Identified exit to Garrison 7664 | -7/Factory | Entered Garrison 7664 | -7/Garrison | Accompanied by 17 allies 7680 | -7/Garrison | Phase Generator disabled 7697 | -7/Garrison | Expanded RIF knowledge: Autooverride 7790 | -7/Garrison | Garrison Relay disabled 7795 | -7/Garrison | Lost 4 allies 7804 | -7/Garrison | Triggered checkpoint 7848 | -7/Garrison | X0-1V1 activates XOMVISION 7849 | -7/Garrison | Garrison Relay disabled 7949 | -7/Garrison | Triggered checkpoint 7964 | -7/Garrison | Triggered checkpoint 8042 | -7/Garrison | Lost 3 parts (1n2w) 8043 | -7/Garrison | Triggered checkpoint 8046 | -7/Garrison | Lost 3 allies 8053 | -7/Garrison | Garrison Relay disabled 8105 | -7/Garrison | Triggered checkpoint 8118 | -7/Garrison | Discovered new exit (range 14) 8127 | -7/Garrison | X0-1V1 vaporized surrounding terrain (radius 18) 8292 | -7/Garrison | Build established: Botlord-Mutant 8294 | -7/Garrison | Triggered checkpoint 8308 | -7/Garrison | X0-1V1 activates XOMVISION 8310 | -7/Garrison | Garrison Relay disabled 8323 | -7/Garrison | Rescued a captive Derelict 8324 | -7/Garrison | Rescued a captive Derelict 8358 | -7/Garrison | Discovered new exit (range 10) 8391 | -7/Garrison | System corruption reached 10% 8540 | -7/Garrison | Triggered checkpoint 8575 | -7/Garrison | Triggered checkpoint 8595 | -7/Garrison | Garrison Relay disabled 8609 | -7/Garrison | Identified exit to Factory 8609 | -7/Garrison | X0-1V1 revealed exit location to -6/Factory 8647 | -7/Garrison | X0-1V1 activates XOMVISION 8690 | -7/Garrison | Entered Factory 8690 | -6/Factory | Accompanied by 19 allies 8690 | -6/Factory | Evolved 2 slots: Utility x2 8774 | -6/Factory | Spotted B-75 Beast 8776 | -6/Factory | Assimilated Beast 5a with formatsys_high 8834 | -6/Factory | X0-1V1 redirected Transport squads to designated parking area 8854 | -6/Factory | X0-1V1 caused items to flee you 9016 | -6/Factory | Items stopped fleeing you 9022 | -6/Factory | Central database locked down 9228 | -6/Factory | Build established: Commander-Tank 9352 | -6/Factory | X0-1V1 enhanced Transport squad support 9392 | -6/Factory | Identified exit to Factory 9392 | -6/Factory | X0-1V1 revealed exit location to -5/Factory 9522 | -6/Factory | X0-1V1 revealed exit location to -5/Factory 9539 | -6/Factory | X0-1V1 rewrote Trooper 4m IFF filter 9579 | -6/Factory | Garrison activated, responded to threat 9639 | -6/Factory | Identified exit to Garrison 9645 | -6/Factory | Entered Garrison 9645 | -6/Garrison | Accompanied by 8 allies 9655 | -6/Garrison | Triggered checkpoint 9662 | -6/Garrison | Lost 3 parts (1n1u1w) 9681 | -6/Garrison | Garrison Relay disabled 9700 | -6/Garrison | Lost 9 allies 9810 | -6/Garrison | Expanded RIF knowledge: Structural Interface 9901 | -6/Garrison | Lost 4 allies 9944 | -6/Garrison | Spotted B-75 Beast 9987 | -6/Garrison | Lost 4 allies 10095 | -6/Garrison | Triggered checkpoint 10111 | -6/Garrison | Triggered checkpoint 10136 | -6/Garrison | Expanded RIF knowledge: Signal Jamming 10143 | -6/Garrison | Garrison Relay disabled 10174 | -6/Garrison | Build established: Botlord-Gunner 10181 | -6/Garrison | Discovered exit to Factory (range 11) 10252 | -6/Garrison | Allies destroyed B-75 Beast 10267 | -6/Garrison | X0-1V1 revealed exit location to -5/Factory 10351 | -6/Garrison | Triggered checkpoint 10366 | -6/Garrison | Garrison Relay disabled 10427 | -6/Garrison | Garrison Relay disabled 10454 | -6/Garrison | X0-1V1 sent you into danger 10486 | -6/Garrison | X0-1V1 revealed exit location to -5/Factory 10601 | -6/Garrison | Triggered checkpoint 10619 | -6/Garrison | Garrison Relay disabled 10648 | -6/Garrison | Found embedded Infiltrators 10783 | -6/Garrison | Core integrity restored by X0-1V1 (+142) 10872 | -6/Garrison | Entered Factory 10872 | -5/Factory | Accompanied by 18 allies 10872 | -5/Factory | Evolved 2 slots: Propulsion x1, Utility x1 11036 | -5/Factory | Garrison activated, responded to threat 11092 | -5/Factory | Identified exit to Garrison 11136 | -5/Factory | Entered Garrison 11136 | -5/Garrison | Accompanied by 15 allies 11155 | -5/Garrison | Triggered checkpoint 11166 | -5/Garrison | Garrison Relay disabled 11228 | -5/Garrison | Build established: Botlord-Tank 11238 | -5/Garrison | Triggered checkpoint 11246 | -5/Garrison | Triggered checkpoint 11284 | -5/Garrison | Triggered checkpoint 11319 | -5/Garrison | Lost 6 allies 11366 | -5/Garrison | Garrison Relay disabled 11386 | -5/Garrison | Triggered checkpoint 11386 | -5/Garrison | Assimilated Heavy ARC 6a with formatsys_deep 11493 | -5/Garrison | Discovered new exit (range 2) 11611 | -5/Garrison | Expanded RIF knowledge: Watcher Feeds 11628 | -5/Garrison | Triggered checkpoint 11657 | -5/Garrison | Learned Factory security intel 11665 | -5/Garrison | Garrison Relay disabled 11684 | -5/Garrison | Garrison Relay disabled 11729 | -5/Garrison | Discovered new exit (range 14) 11742 | -5/Garrison | Found embedded Infiltrators 11828 | -5/Garrison | X0-1V1 caused items to flee you 11909 | -5/Garrison | Discovered new exit (range 10) 11910 | -5/Garrison | Lost 3 allies 11914 | -5/Garrison | Triggered checkpoint 11956 | -5/Garrison | Items stopped fleeing you 11977 | -5/Garrison | Spotted B-75 Beast 11992 | -5/Garrison | Destroyed B-75 Beast 12149 | -5/Garrison | Entered Factory 12149 | -5/Factory | Accompanied by 22 allies 12301 | -5/Factory | Identified exit to Factory 12301 | -5/Factory | X0-1V1 revealed exit location to -4/Factory 12308 | -5/Factory | X0-1V1 added 0b10 threat records associated with you (minor) 12371 | -5/Factory | Identified exit to Garrison 12394 | -5/Factory | Entered Garrison 12394 | -5/Garrison | Accompanied by 20 allies 12504 | -5/Garrison | Triggered checkpoint 12510 | -5/Garrison | Triggered checkpoint 12515 | -5/Garrison | Lost 3 allies 12549 | -5/Garrison | Garrison Relay disabled 12600 | -5/Garrison | Spotted B-75 Beast 12606 | -5/Garrison | Triggered checkpoint 12608 | -5/Garrison | Assimilated Beast 6a with formatsys_high 12629 | -5/Garrison | Sage 6a assimilated hostile G-50 Soldier 12638 | -5/Garrison | Triggered checkpoint 12654 | -5/Garrison | Lost 3 allies 12731 | -5/Garrison | Triggered checkpoint 12740 | -5/Garrison | Garrison Relay disabled 12809 | -5/Garrison | Discovered exit to Factory (range 23) 12815 | -5/Garrison | Lost 3 allies 12879 | -5/Garrison | X0-1V1 destroyed Phase Generator 12879 | -5/Garrison | Phase Generator disabled 12948 | -5/Garrison | Triggered checkpoint 12993 | -5/Garrison | Found embedded Infiltrators 12994 | -5/Garrison | X0-1V1 revealed exit location to -4/Factory 13011 | -5/Garrison | Discovered exit to Factory (range 12) 13014 | -5/Garrison | Triggered checkpoint 13029 | -5/Garrison | Garrison Relay disabled 13075 | -5/Garrison | Build established: Commander-Gunner 13092 | -5/Garrison | Spotted B-75 Beast 13133 | -5/Garrison | X0-1V1 activates XOMVISION 13162 | -5/Garrison | Destroyed B-75 Beast 13330 | -5/Garrison | Expanded RIF knowledge: Autoassimilate 13354 | -5/Garrison | Expanded RIF knowledge: Alert ID Control 13385 | -5/Garrison | Triggered checkpoint 13395 | -5/Garrison | Garrison Relay disabled 13405 | -5/Garrison | X0-1V1 caused items to flee you 13505 | -5/Garrison | Entered Factory 13505 | -4/Factory | Accompanied by 44 allies 13505 | -4/Factory | Evolved 2 slots: Propulsion x1, Utility x1 13510 | -4/Factory | X0-1V1 added 0b10 threat records associated with you (considerable) 13611 | -4/Factory | Discovered new exit (range 5) 13729 | -4/Factory | Lost 4 allies 13763 | -4/Factory | Identified exit to Garrison 13814 | -4/Factory | Identified exit to Research 13814 | -4/Factory | X0-1V1 revealed exit location to -3/Research 13824 | -4/Factory | X0-1V1 sent you into danger 13830 | -4/Factory | Discovered new exit (range 9) 13972 | -4/Factory | Lost 3 allies 14077 | -4/Factory | Assimilated Heavy ARC 7a with formatsys_deep 14127 | -4/Factory | Lost 7 allies 14196 | -4/Factory | Identified exit to Garrison 14249 | -4/Factory | Entered Garrison 14249 | -4/Garrison | Accompanied by 20 allies 14265 | -4/Garrison | Triggered checkpoint 14278 | -4/Garrison | Lost 3 allies 14316 | -4/Garrison | Garrison Relay disabled 14335 | -4/Garrison | Triggered checkpoint 14359 | -4/Garrison | Garrison Relay disabled 14381 | -4/Garrison | Discovered exit to Research (range 62) 14381 | -4/Garrison | Discovered exit to Research (range 74) 14381 | -4/Garrison | Discovered exit to Research (range 44) 14552 | -4/Garrison | Build established: Botlord-Gunner 14573 | -4/Garrison | Triggered checkpoint 14584 | -4/Garrison | Triggered checkpoint 14590 | -4/Garrison | Triggered checkpoint 14635 | -4/Garrison | Triggered checkpoint 14637 | -4/Garrison | Lost 4 allies 14698 | -4/Garrison | Expanded RIF knowledge: Robot Detection 14771 | -4/Garrison | Triggered checkpoint 14780 | -4/Garrison | Garrison Relay disabled 14852 | -4/Garrison | Lost 6 allies 14867 | -4/Garrison | Expanded RIF knowledge: Threat Obfuscation 14913 | -4/Garrison | X0-1V1 activates XOMVISION 14980 | -4/Garrison | Garrison Relay disabled 15026 | -4/Garrison | Triggered checkpoint 15055 | -4/Garrison | Garrison Relay disabled 15382 | -4/Garrison | Entered Research 15382 | -3/Research | Accompanied by 32 allies 15382 | -3/Research | Evolved 2 slots: Utility x2 15417 | -3/Research | Garrison activated, responded to threat 15488 | -3/Research | X0-1V1 released a cloud of subatomizers 15663 | -3/Research | Lost 3 allies 15767 | -3/Research | Lost 4 allies 15882 | -3/Research | First assault squad dispatched 15905 | -3/Research | Spotted B-86 Titan 15908 | -3/Research | Assimilated Titan 8a with formatsys_high 15999 | -3/Research | Build established: Botlord-Tank 16068 | -3/Research | Lost 4 allies 16079 | -3/Research | P-80 Master assimilated allied Enforcer 7a 16124 | -3/Research | Discovered new exit (range 22) 16164 | -3/Research | Lost 7 allies 16218 | -3/Research | Spotted B-86 Titan 16219 | -3/Research | Assimilated Titan 8b with formatsys_high 16240 | -3/Research | Identified exit to Garrison 16240 | -3/Research | Entered Garrison 16240 | -3/Garrison | Accompanied by 13 allies 16261 | -3/Garrison | Expanded RIF knowledge: Threat Obfuscation 16282 | -3/Garrison | Triggered checkpoint 16298 | -3/Garrison | Garrison Relay disabled 16358 | -3/Garrison | Expanded RIF knowledge: Program Shield 16391 | -3/Garrison | X0-1V1 activates XOMVISION 16402 | -3/Garrison | Spotted B-86 Titan 16416 | -3/Garrison | P-80 Master assimilated allied EU-6W7(l) 16421 | -3/Garrison | Assimilated Titan 8c with formatsys_high 16422 | -3/Garrison | Triggered checkpoint 16428 | -3/Garrison | Triggered checkpoint 16493 | -3/Garrison | Lost 9 allies 16606 | -3/Garrison | Heavy support dispatched to Research 16660 | -3/Garrison | Discovered new exit (range 16) 16692 | -3/Garrison | H-XX Assembler disabled 16817 | -3/Garrison | Found Fusion Bomb Launcher 16912 | -3/Garrison | Garrison Relay disabled 17126 | -3/Garrison | Triggered checkpoint 17166 | -3/Garrison | Garrison Relay disabled 17174 | -3/Garrison | Triggered checkpoint 17237 | -3/Garrison | Discovered new exit (range 15) 17347 | -3/Garrison | Discovered new exit (range 13) 17347 | -3/Garrison | X0-1V1 activates XOMVISION 17371 | -3/Garrison | Spotted Striker 17371 | -3/Garrison | Spotted Executioner 17375 | -3/Garrison | Rewired Executioner 17382 | -3/Garrison | Allies destroyed Executioner 17396 | -3/Garrison | Destroyed Striker 17412 | -3/Garrison | Rewired Striker 17482 | -3/Garrison | Destroyed 7 combat bots 17507 | -3/Garrison | Triggered checkpoint 17564 | -3/Garrison | Garrison Relay disabled 17578 | -3/Garrison | Garrison Relay disabled 17662 | -3/Garrison | Found Relay Coupler [Proto] 17665 | -3/Garrison | Found Relay Coupler [Proto] 17666 | -3/Garrison | X0-1V1 activates XOMVISION 17669 | -3/Garrison | Found Relay Coupler [Proto] 17671 | -3/Garrison | Found Relay Coupler [Proto] 17734 | -3/Garrison | Entered Research 17734 | -2/Research | Accompanied by 25 allies 17734 | -2/Research | Evolved 2 slots: Utility x2 17790 | -2/Research | Spotted B-90 Cyclops 17809 | -2/Research | Destroyed B-90 Cyclops 17855 | -2/Research | X0-1V1 sent you to a vault 17922 | -2/Research | Weapon slot count temporarily expanded by X0-1V1 (+2) 17930 | -2/Research | Spotted B-90 Cyclops 17938 | -2/Research | Destroyed B-90 Cyclops 17965 | -2/Research | Lost 4 allies 18029 | -2/Research | Garrison activated, responded to threat 18154 | -2/Research | X0-1V1 put everyone to sleep 18178 | -2/Research | Identified exit to Garrison 18195 | -2/Research | Lost 3 allies 18211 | -2/Research | Entered Garrison 18211 | -2/Garrison | Accompanied by 11 allies 18254 | -2/Garrison | X0-1V1 caused items to flee you 18259 | -2/Garrison | Spotted B-90 Cyclops 18267 | -2/Garrison | Triggered checkpoint 18283 | -2/Garrison | Destroyed B-90 Cyclops 18287 | -2/Garrison | Identified exit to Access 18287 | -2/Garrison | X0-1V1 revealed exit location to -1/Access 18290 | -2/Garrison | Assembled breached garrison interior 18314 | -2/Garrison | Lost 5 allies 18347 | -2/Garrison | X0-1V1 turns hostiles against one another 18363 | -2/Garrison | X0-1V1 sent you into danger 18366 | -2/Garrison | Garrison Relay disabled 18394 | -2/Garrison | Items stopped fleeing you 18408 | -2/Garrison | Expanded RIF knowledge: Coupler Efficiency 18409 | -2/Garrison | Lost 3 parts (1p2u) 18415 | -2/Garrison | Lost 5 allies 18429 | -2/Garrison | Weapon slot count reverted to normal (-2) 18455 | -2/Garrison | Spotted B-90 Cyclops 18487 | -2/Garrison | Discovered exit to Access (range 0) 18487 | -2/Garrison | X0-1V1 whisked you away to safety 18504 | -2/Garrison | Lost 4 allies 18524 | -2/Garrison | X0-1V1 revealed exit location to -1/Access 18578 | -2/Garrison | System corruption reached 10% 18661 | -2/Garrison | X0-1V1 sent allied Fireman (x5) 18695 | -2/Garrison | Lost 8 parts (1p2n3u2w) 18817 | -2/Garrison | Garrison Relay disabled 18872 | -2/Garrison | Expanded RIF knowledge: Command Fork 18888 | -2/Garrison | Lost 3 parts (2u1w) 19058 | -2/Garrison | Garrison Relay disabled 19075 | -2/Garrison | Build established: Botlord-Gunner 19157 | -2/Garrison | Entered Access 19157 | -1/Access | Accompanied by 10 allies 19157 | -1/Access | Evolved 2 slots: Utility x1, Weapon x1 19224 | -1/Access | Identified exit to Garrison 19227 | -1/Access | Entered Garrison 19227 | -1/Garrison | Accompanied by 10 allies 19249 | -1/Garrison | Triggered checkpoint 19316 | -1/Garrison | Lost 10 allies 19337 | -1/Garrison | Triggered checkpoint 19366 | -1/Garrison | Expanded RIF knowledge: Coupler Efficiency 19376 | -1/Garrison | Spotted B-99 Colossus 19376 | -1/Garrison | Spotted B-99 Colossus 19529 | -1/Garrison | Garrison Relay disabled 19554 | -1/Garrison | Build established: Botlord-Tank 19554 | -1/Garrison | Garrison Relay disabled 19609 | -1/Garrison | Triggered checkpoint 19618 | -1/Garrison | Triggered checkpoint 19619 | -1/Garrison | Spotted B-99 Colossus 19627 | -1/Garrison | Triggered checkpoint 19664 | -1/Garrison | Destroyed B-99 Colossus 19687 | -1/Garrison | X0-1V1 sent hostile S-43 Plague (x5) 19687 | -1/Garrison | Triggered checkpoint 19729 | -1/Garrison | Lost 21 allies 19765 | -1/Garrison | Found embedded Infiltrators 19771 | -1/Garrison | Triggered checkpoint 19776 | -1/Garrison | Garrison Relay disabled 19814 | -1/Garrison | System corruption reached 10% 19829 | -1/Garrison | Discovered new exit (range 14) 19948 | -1/Garrison | Lost 3 allies 20009 | -1/Garrison | Lost 6 allies 20091 | -1/Garrison | Triggered checkpoint 20108 | -1/Garrison | Garrison Relay disabled 20134 | -1/Garrison | Spotted Striker 20134 | -1/Garrison | Spotted Striker 20148 | -1/Garrison | Assimilated Striker with formatsys_high 20154 | -1/Garrison | Assimilated Striker with formatsys_high 20173 | -1/Garrison | Discovered new exit (range 4) 20305 | -1/Garrison | Triggered checkpoint 20331 | -1/Garrison | Garrison Relay disabled 20377 | -1/Garrison | Discovered new exit (range 14) 20481 | -1/Garrison | Entered Access 20481 | -1/Access | Accompanied by 25 allies 20579 | -1/Access | Spotted B-99 Colossus 20579 | -1/Access | Spotted B-99 Colossus 20601 | -1/Access | Discovered new exit (range 3) 20630 | -1/Access | Found Prototype Ballistic Gun 20630 | -1/Access | Identified Multirail 20634 | -1/Access | Allies destroyed B-99 Colossus 20663 | -1/Access | Lost 13 allies 20691 | -1/Access | Entered Command 20691 | -1/Command | Accompanied by 15 allies 20881 | -1/Command | Spotted B-99 Colossus 20882 | -1/Command | Allies destroyed B-99 Colossus 20892 | -1/Command | Found Multirail 20904 | -1/Command | Lost 3 allies 20977 | -1/Command | Spotted Striker 20979 | -1/Command | Spotted Alpha 7 20979 | -1/Command | Spotted Executioner 20986 | -1/Command | Assimilated Alpha 7 with formatsys_high 20987 | -1/Command | Allies destroyed Striker 20992 | -1/Command | Spotted Alpha 7 20992 | -1/Command | Spotted Striker 20992 | -1/Command | Spotted Executioner 20992 | -1/Command | Assimilated Executioner with formatsys_high 20992 | -1/Command | Assimilated Alpha 7 with formatsys_high 20993 | -1/Command | Autoassimilated Striker with RIF 20995 | -1/Command | Spotted Executioner 20996 | -1/Command | Spotted Executioner 20997 | -1/Command | Spotted B-99 Colossus 20999 | -1/Command | Assimilated Executioner with formatsys_high 21003 | -1/Command | Allies destroyed Executioner 21006 | -1/Command | Allies destroyed Executioner 21012 | -1/Command | Allies destroyed B-99 Colossus 21014 | -1/Command | Spotted B-99 Colossus 21032 | -1/Command | Discovered new exit (range 12) 21039 | -1/Command | Allies destroyed B-99 Colossus 21051 | -1/Command | Found Prototype Processor 21051 | -1/Command | Identified Exp. Core Analyzer 21063 | -1/Command | Lost 4 allies 21066 | -1/Command | Found Multirail 21095 | -1/Command | Found Prototype Processor 21095 | -1/Command | Identified Exp. Targeting Computer 21130 | -1/Command | X0-1V1 sent you to a vault 21290 | -1/Command | Spotted M Guard 21290 | -1/Command | Spotted M Guard 21290 | -1/Command | Spotted Combat Programmer 21292 | -1/Command | Spotted Combat Programmer 21381 | -1/Command | X0-1V1 sent allied Cetus Guard (x3) 21389 | -1/Command | Destroyed Combat Programmer 21390 | -1/Command | Lost 24 allies 21392 | -1/Command | Assimilated M Guard with formatsys_high 21421 | -1/Command | Assimilated M Guard with formatsys_high 21648 | -1/Command | Met MAIN.C 21655 | -1/Command | 0b10 Conduit disabled 21693 | -1/Command | Allies destroyed MAIN.C Shell 21694 | -1/Command | MAIN.C activated Command garrisons 21746 | -1/Command | All MAIN.C guards destroyed 21757 | -1/Command | X0-1V1 downgraded hostiles (x2) 21771 | -1/Command | System corruption reached 30% 21779 | -1/Command | Core integrity fell below 50% 21781 | -1/Command | Core integrity fell below 20% 21782 | -1/Command | X0-1V1 rescued you from certain death 21803 | -1/Command | Lost 15 allies 21805 | -1/Command | X0-1V1 rescued you from certain death 21811 | -1/Command | Lost 27 parts (3p5n14u5w) 21813 | -1/Command | X0-1V1 rescued you from certain death 21835 | *** | Escaped! Last Messages --------------- 21820_ C-45 Heavy ARC bursts open, deploying its payload. 21820_ L-61 Swordsman unfolds itself. 21820_ G-73 Enforcer unfolds itself. 21823_ C-45 Heavy ARC bursts open, deploying its payload. 21823_ G-73 Enforcer unfolds itself. 21823_ Penetrated by Slug. 21824_ E-15 Imp destroyed. 21824_ C-45 Heavy ARC bursts open, deploying its payload. 21824_ P-80 Master unfolds itself. 21826_ Slug penetrates Wall. 21826_ Slug penetrates Earth. 21826_ P-80 Master resets G-73 Enforcer, system corruption cleaned. 21827_ System corrupted: Heat flow error (+238). 21827_ E-15 Imp destroyed. 21830_ Acquired 4 matter. [Achievement: 75k Club] Map ----- +----------------------------------------------------+ | # ## #?? """" ""???????????? | | # ## % % % #? """" """" ???????? | | # ## ####= # # #??????? | | # ## #??##% # / ##+##### | | + ## #?######+###########???????# !!]# | | # ## #?# #???????????# !! # | | # ## #?# #???????????# !] # | | # ## #?# #???????##### # | | # ## ### "" !!] ######### # ! # | | ########## / "" !!] + + # | | ########## ### "" !]] ######### #####+## | | ## %+ % #?# "Y #???????## ##??# | | ## %"%#######+### "" #????????# #???# | | "# %## # "" #????????# #???# | | #" ""% # "" #????????# #???# | | ## ## # #????????# #???# | | ## ## # #????????# #???#! | | #" !########################????????# #???# | | ##=="/%#???????????????????????????????? ????# | | # =!%"*#??????????##############???????? ????##### | | # = " #####????### #???????? ????????? | | # % ##"######;;% #???????? ????????? | | ##% % ##%%# ; ; ; ^^^ #????????#????????? | | " = ^ % ^ % #?????????????????? | | %" % ^%% ^^! ! ^ #?????????????????? | | " %^^% % ^ ! % % "@ #?????????????????? | | ^% ^! ! %! "" ^ #?????????????????? | | %^% ^ #?????????????????? | | = ^^ ^^^ % #?????????????????? | | # # ###!# # !%; % ^ ^ ^ #?????????????????? | | #### ###?########;% #?????????!????!??? | | #??##???????????##% #?????????????????? | | #????????????????#;############?????????????????? | | #????????????????###????????????????????????????? | | ##############??????????????????????????????????? | | # * #??????????????????????????????????? | | # #??????????????????????????????????? | | + "" #??????????????????????????????????? | | # """" #??????????????????????????????????? | | # """" ####???????????????????????????????? | | # "" + #???????????????????????????????? | | + ## #???????????????????????????????? | | # ##?#???????????????????????????????? | | # #??????????????????????????????????? | | # #??????????????????????????????????? | | # #??????????????????????????????????? | | # #??????????????????????????????????? | | ##############??????????????????????????????????? | | ????????????????????????????????????????????????? | | ???????***??????????????????????????????????????? | +----------------------------------------------------+ Best States ------------- Heat Dissipation 87 Coolant Potential 100 Energy Generation 25 Energy Capacity 1740 Matter Stores 900 Matter Capacity 900 Sight Range 23 Terrain Scan Range 16 Terrain Scan Density 10 Additional Mass Support 16 Armor Coverage 400 Resistance: KI 30 Resistance: EM 31 Weapon Cycling 25 Phase Shifting 15 Evasion (%) 55 Targeting Accuracy 12 Core Analysis 8 Armor Integrity Analysis 30 Recoil Reduction 2 Offensive Hacking 10 Relay Coupler Types 8 Relay Coupler Value 469 Authchip Count 2 Item Schematics ----------------- None Robot Schematics ------------------ None Fabricated ------------ A-02 Transporter | x1 | -7/Factory | Preloaded Repaired ---------- Nothing Studied --------- Arm. Wheel | -7/Factory | Hacked Arm. Huge Wheel | -6/Factory | Hacked Remote Datajack | -6/Factory | Hacked Imp. Remote Datajack | -4/Factory | Hacked Hvy. Missile Launcher | -4/Factory | Hacked Centrium Wheel | -4/Factory | Hacked Particle Reactor | -3/Research | Hacked Enh. Nova Cannon | -3/Research | Hacked Alien Tech Used ----------------- None Achievements -------------- 75k Club Corridor Of Doom Dramatic Entrance Heavy Suspicion I Laugh At Your Crits Oppo Buddy RIFT Wizard Zeroed Repercussions Challenges ------------ None Game ------ Seed TerrainSpliceLoader Manual? 0 Play Time 07:33:43 Cumulative 160.8 hours Start 2026.09.16 @ 18:34:54 End 2026.09.17 @ 12:13:41 Sessions 3 Manual Loads 0 Difficulty Rogue Special Mode None Game No. 73 Rogue 73 Adventurer 0 Explorer 0 Win Type 0 Total 4 Types 3/0/0/0/1/0/0/0/0/0 Lore% 19 Gallery% 51 Achievement% 34 Wizard Run 0 Options --------- Layout 1 ASCII 0 Keyboard 0 Movement Arrows Keybinds 0 Fullscreen 1 Font 24/Smallcaps Map View 50x35 Zoom Use 0% Tactical HUD 1 Map Filters NONE Filters NONE Steam 1 RUN: 4bc740ff-178a-4d5f-a35b-5b74b30acf80